Workbook

Sheet Introduction
B2: Station Placement Optimization Tool (SPOT)
B4: What is this tool?
B5: This ranking tool is intended to assist in ranking locations for Environmental Sensor Station (ESS) placement around the state of New Mexico, for the purpose of determining ideal locations to expand the NMDOT Road Weather Information System (RWIS). This tool takes in environmental and topological data about a location and outputs a ranking on a scale from 1 to 10.
B7: How do I use it?
B8: If you have not yet input any site data into the tool, use the Launch Data Entry Form button below to open the data entry form. Fill in all available data for your chosen location and follow any instructions that pop up. Once you have submitted data for at least two locations, you can press the Launch Ranking Report button to open the site ranking report for the locations you have entered data for. To clear data for a site, go to the Data Input sheet, highlight the row the site is in, and delete the data in that row.

Sheet Ranking Report
B2: SPOT Site Ranking Report
B4: Location | C4: Latitude | D4: Longitude | E4: Absolute Ranking | F4: Relative Ranking | G4: Flags | I4: Flag Codes:
B5: NM-150 MM10 (Taos Ski Valley) | C5: 36.57 | D5: -105.51 | E5: 56.4 | F5: 50.6258331 | G5: 1,2, | I5: 1: Power lines are not available nearby
B6: I-40 MM180 (West of Edgewood) | C6: 35.11 | D6: -106.3 | E6: 52.71620315 | F6: 26.74417993 | I6: 2: Communcation lines are not available nearby
B7: I-40 MM173 (Tijeras Canyon) | C7: 35.08 | D7: -106.41 | E7: 50.81035245 | F7: 31.27143434 | I7: 3: Site is on or near Tribal Lands
B8: US-64 MM390 (Des Moines) | C8: 36.71 | D8: -103.8 | E8: 50.45 | F8: 25.54314887
B9: NM-38 MM18 (Red River) | C9: 36.67 | D9: -105.33 | E9: 49.53007326 | F9: 41.20232077 | G9: 1,2,
B10: I-40/US-285 (Clines Corners) | C10: 35.01 | D10: -105.67 | E10: 47.39452381 | F10: 23.96667496
B11: US-64 MM273 (Palo Flechado Pass) | C11: 36.414 | D11: -105.337 | E11: 47.02613653 | F11: 33.58576389
B12: I-25 MM331 (Serafina) | C12: 35.39 | D12: -105.33 | E12: 46.35337302 | F12: 24.3800487 | G12: 1,2,
B13: US-60 MM260 (West of Vaughn) | C13: 34.61 | D13: -105.37 | E13: 43.35952381 | F13: 28.75533758 | G13: 1,2,
B14: I-40 MM70 (West of Grants) | C14: 35.29 | D14: -107.99 | E14: 43.21766998 | F14: 22.93832465 | G14: 1,2,
B15: NM-550 MM110 | C15: 36.25 | D15: -107.66 | E15: 41.68630952 | F15: 19.82942668 | G15: 1,2,
B16: I-25 MM268 (La Bajada) | C16: 35.52 | D16: -106.19 | E16: 41.16065645 | F16: 22.33988711 | G16: 1,2,
B17: NM-68 MM16 (Velarde) | C17: 36.19 | D17: -105.98 | E17: 36.93554318 | F17: 19.03680958
B18: I-25 MM257 (San Felipe Pueblo) | C18: 35.46 | D18: -106.34 | E18: 29.80973748 | F18: 14.54253415 | G18: 3,
B19: NM-550 MM27 (San Ysidro) | C19: 35.54 | D19: -106.83 | E19: 29.29407196 | F19: 14.94906274 | G19: 1,2,
B20: US-70 MM255 (South of Ruidoso) | C20: 33.27 | D20: -105.7 | E20: 29.17434371 | F20: 14.59355744 | G20: 1,2,3,
B21: I-25/I-40 (The Big I) | C21: 35.1 | D21: -106.63 | E21: 28.14388889 | F21: 26.62083868
B22: NM-602 MM25 (South of Gallup) | C22: 35.45 | D22: -108.75 | E22: 27.25628121 | F22: 14.2981709 | G22: 1,2,3,
B23: I-40 MM320 (West of Tucumcari) | C23: 35.12 | D23: -103.93 | E23: 25.12954823 | F23: 15.04537562 | G23: 1,2,
B24: US-70 MM435 (South of Clovis) | C24: 34.31 | D24: -103.2 | E24: 14.98214286 | F24: 10.03683298

Sheet Data Input
A1: Location | B1: Poor Weather Crashes | C1: Clear Weather Crashes | D1: ='Criteria & Importance'!B1 -> Ratio of Weather to Clear Crashes | E1: ='Criteria & Importance'!C1 -> Average annual snow (in) | F1: ='Criteria & Importance'!D1 -> 2013 AADT | G1: ='Criteria & Importance'!E1 -> Average Wind Gust | H1: ='Criteria & Importance'!F1 -> Local Altitude Range (meters) | I1: ='Criteria & Importance'!G1 -> Dist Patrol Yard (mi) | J1: ='Criteria & Importance'!H1 -> Altitude (Meters) | K1: ='Criteria & Importance'!I1 -> Snow Removal Priority | L1: ='Criteria & Importance'!J1 -> Average Road Grade 2 Miles | M1: ='Criteria & Importance'!K1 -> Average Annual Rain (in) | N1: ='Criteria & Importance'!L1 -> Dist ITS Unit (mi) | O1: ='Criteria & Importance'!M1 -> Fire Risk (0 Very High, 5 No Risk) | P1: ='Criteria & Importance'!N1 -> Distance to Power (mi) | Q1: ='Criteria & Importance'!O1 -> Distance to Communication (mi) | R1: ='Criteria & Importance'!P1 -> Local Environment | S1: ='Criteria & Importance'!Q1 -> Functional Class | T1: ='Criteria & Importance'!R1 -> In Tribal Land? | U1: T Land BOOL | V1: Latitude | W1: Longitude | X1: Length of AADT Road Segment (mi) | Y1: ='Criteria & Importance'!S1 -> Ratio of Crash Rates Per 100M Vehicle Miles | Z1: ='Criteria & Importance'!U1 -> Comment 1 | AA1: ='Criteria & Importance'!V1 -> Comment 2
A2: NM-150 MM10 (Taos Ski Valley) | B2: 12 | C2: 9 | D2: 1.333333333 | E2: 62.5 | F2: 800 | G2: 0 | H2: 900 | I2: 8 | J2: 2650 | K2: 4 | L2: 0 | M2: 21 | N2: 12 | O2: 4 | P2: 15 | Q2: 15 | T2: NO | U2: 0 | V2: 36.57 | W2: -105.51 | X2: 7.59 | Y2: 20.05362339 | Z2: District 5 | AZ2: 56.4
A3: I-40 MM180 (West of Edgewood) | B3: 44 | C3: 73 | D3: 0.602739726 | E3: 25.6 | F3: 28900 | G3: 0 | H3: 100 | I3: 3.5 | J3: 2100 | K3: 8 | L3: 0 | M3: 19.5 | N3: 2.5 | O3: 4 | P3: 1 | Q3: 1 | T3: NO | U3: 0 | V3: 35.11 | W3: -106.3 | X3: 3.01 | Y3: 0.6327779816 | Z3: District 3 | AZ3: 52.71620315
A4: I-40 MM173 (Tijeras Canyon) | B4: 43 | C4: 164 | D4: 0.262195122 | E4: 20.5 | F4: 67600 | G4: 0 | H4: 900 | I4: 3 | J4: 1900 | K4: 10 | L4: 0 | M4: 20 | N4: 2 | O4: 1.5 | P4: 0 | Q4: 0 | T4: NO | U4: 0 | V4: 35.08 | W4: -106.41 | X4: 5.13 | Y4: 0.06904725652 | Z4: District 3 | AZ4: 50.81035245
A5: US-64 MM390 (Des Moines) | B5: 14 | C5: 17 | D5: 0.8235294118 | E5: 35.5 | F5: 3800 | G5: 0 | H5: 200 | I5: 4 | J5: 1970 | K5: 4 | L5: 0 | M5: 18 | N5: 15.5 | O5: 4 | P5: 0 | Q5: 0 | T5: NO | U5: 0 | V5: 36.71 | W5: -103.8 | X5: 18.39 | Y5: 1.076216557 | Z5: District 4 | AZ5: 50.45
A6: NM-38 MM18 (Red River) | B6: 10 | C6: 21 | D6: 0.4761904762 | E6: 85 | F6: 700 | G6: 0 | H6: 600 | I6: 8.1 | J6: 2750 | K6: 4 | L6: 0 | M6: 19.7 | N6: 70 | O6: 3 | P6: 7 | Q6: 7 | T6: NO | U6: 0 | V6: 36.67 | W6: -105.33 | X6: 16.58 | Y6: 3.747002819 | Z6: District 4 | AZ6: 49.53007326
A7: I-40/US-285 (Clines Corners) | B7: 15 | C7: 17 | D7: 0.8823529412 | E7: 31.4 | F7: 16000 | G7: 0 | H7: 20 | I7: 0.5 | J7: 2152 | K7: 10 | L7: 0 | M7: 15 | N7: 0 | O7: 4 | P7: 0 | Q7: 0 | T7: NO | U7: 0 | V7: 35.01 | W7: -105.67 | X7: 0.64 | Y7: 7.869157937 | Z7: District 5 | AZ7: 47.39452381
A8: US-64 MM273 (Palo Flechado Pass) | B8: 23 | C8: 73 | D8: 0.3150684932 | E8: 55 | F8: 1400 | G8: 0 | H8: 400 | I8: 11.5 | J8: 2780 | K8: 5 | L8: 0 | M8: 24.6 | N8: 19.5 | O8: 2 | P8: 0 | Q8: 0 | T8: NO | U8: 0 | V8: 36.414 | W8: -105.337 | X8: 18.89 | Y8: 1.08800493 | Z8: District 4/5 | AZ8: 47.02613653
A9: I-25 MM331 (Serafina) | B9: 16 | C9: 30 | D9: 0.5333333333 | E9: 34.5 | F9: 8700 | G9: 0 | H9: 100 | I9: 14 | J9: 1950 | K9: 7 | L9: 0 | M9: 17.5 | N9: 38 | O9: 3 | P9: 15 | Q9: 15 | T9: NO | U9: 0 | V9: 35.39 | W9: -105.33 | X9: 4.98 | Y9: 1.124180411 | Z9: District 4 | AZ9: 46.35337302
A10: US-60 MM260 (West of Vaughn) | B10: 9 | C10: 8 | D10: 1.125 | E10: 21 | F10: 2500 | G10: 0 | H10: 100 | I10: 8 | J10: 1880 | K10: 10 | L10: 0 | M10: 15 | N10: 32 | O10: 4 | P10: 7 | Q10: 7 | T10: NO | U10: 0 | V10: 34.61 | W10: -105.37 | X10: 13.62 | Y10: 3.017319413 | Z10: District 5 | AZ10: 43.35952381
A11: I-40 MM70 (West of Grants) | B11: 52 | C11: 76 | D11: 0.6842105263 | E11: 20.5 | F11: 23100 | G11: 0 | H11: 50 | I11: 7 | J11: 2060 | K11: 9 | L11: 0 | M11: 11 | N11: 50 | O11: 4 | P11: 6 | Q11: 6 | T11: NO | U11: 0 | V11: 35.29 | W11: -107.99 | X11: 8.43 | Y11: 0.3208751448 | Z11: District 6 | AZ11: 43.21766998
A12: NM-550 MM110 | B12: 44 | C12: 52 | D12: 0.8461538462 | E12: 26.4 | F12: 5700 | G12: 0 | H12: 200 | I12: 37 | J12: 2100 | K12: 5 | L12: 0 | M12: 10.5 | N12: 65 | O12: 3 | P12: 40 | Q12: 40 | T12: NO | U12: 0 | V12: 36.25 | W12: -107.66 | X12: 20.67 | Y12: 0.655873194 | Z12: District 5 | AZ12: 41.68630952
A13: I-25 MM268 (La Bajada) | B13: 24 | C13: 95 | D13: 0.2526315789 | E13: 20.5 | F13: 33800 | G13: 0 | H13: 75 | I13: 9 | J13: 1850 | K13: 8 | L13: 0 | M13: 13.5 | N13: 3 | O13: 4 | P13: 7 | Q13: 7 | T13: NO | U13: 0 | V13: 35.52 | W13: -106.19 | X13: 3.96 | Y13: 0.1723699799 | Z13: District 5 | AZ13: 41.16065645
A14: NM-68 MM16 (Velarde) | B14: 16 | C14: 57 | D14: 0.2807017544 | E14: 31.1 | F14: 5700 | G14: 0 | H14: 360 | I14: 7.5 | J14: 1770 | K14: 4 | L14: 0 | M14: 12.6 | N14: 12 | O14: 1 | P14: 0 | Q14: 0 | T14: NO | U14: 0 | V14: 36.19 | W14: -105.98 | X14: 8.88 | Y14: 0.5064577093 | Z14: District 5 | AZ14: 36.93554318
A15: I-25 MM257 (San Felipe Pueblo) | B15: 23 | C15: 84 | D15: 0.2738095238 | E15: 20.5 | F15: 25000 | G15: 0 | H15: 50 | I15: 22 | J15: 1670 | K15: 8 | L15: 0 | M15: 13 | N15: 14 | O15: 4 | P15: 0 | Q15: 0 | T15: YES | U15: 1 | V15: 35.46 | W15: -106.34 | X15: 4.46 | Y15: 0.2242639997 | Z15: District 3 | AZ15: 29.80973748
A16: NM-550 MM27 (San Ysidro) | B16: 19 | C16: 37 | D16: 0.5135135135 | E16: 20.2 | F16: 5100 | G16: 0 | H16: 150 | I16: 3.5 | J16: 1680 | K16: 3 | L16: 0 | M16: 13 | N16: 100 | O16: 4 | P16: 3.5 | Q16: 3.5 | T16: NO | U16: 0 | V16: 35.54 | W16: -106.83 | X16: 25.95 | Y16: 0.3543481906 | Z16: District 6 | AZ16: 29.29407196
A17: US-70 MM255 (South of Ruidoso) | B17: 23 | C17: 225 | D17: 0.1022222222 | E17: 23 | F17: 7300 | G17: 0 | H17: 200 | I17: 25 | J17: 2200 | K17: 5 | L17: 0 | M17: 20 | N17: 90 | O17: 2 | P17: 7 | Q17: 7 | T17: YES | U17: 1 | V17: 33.27 | W17: -105.7 | X17: 11.64 | Y17: 0.1098639877 | Z17: District 2 | AZ17: 29.17434371
A18: I-25/I-40 (The Big I) | B18: 260 | C18: 4879 | D18: 0.05328960853 | E18: 12.5 | F18: 180400 | G18: 0 | H18: 50 | I18: 3 | J18: 1536 | K18: 22 | L18: 0 | M18: 11 | N18: 0.5 | O18: 5 | P18: 0 | Q18: 0 | T18: NO | U18: 0 | V18: 35.1 | W18: -106.63 | X18: 1.44 | Y18: 0.01873395123 | Z18: District 3 | AZ18: 28.14388889
A19: NM-602 MM25 (South of Gallup) | B19: 35 | C19: 202 | D19: 0.1732673267 | E19: 26.5 | F19: 8200 | G19: 0 | H19: 100 | I19: 5 | J19: 2060 | K19: 3 | L19: 0 | M19: 13 | N19: 29 | O19: 4 | P19: 4 | Q19: 4 | T19: YES | U19: 1 | V19: 35.45 | W19: -108.75 | X19: 23.95 | Y19: 0.08057182218 | Z19: District 6 | AZ19: 27.25628121
A20: I-40 MM320 (West of Tucumcari) | B20: 8 | C20: 30 | D20: 0.2666666667 | E20: 15.4 | F20: 21000 | G20: 0 | H20: 20 | I20: 13 | J20: 1370 | K20: 7 | L20: 0 | M20: 17 | N20: 130 | O20: 2 | P20: 10 | Q20: 10 | T20: NO | U20: 0 | V20: 35.12 | W20: -103.93 | X20: 10.26 | Y20: 0.1130284983 | Z20: District 4 | AZ20: 25.12954823
A21: US-70 MM435 (South of Clovis) | B21: 19 | C21: 365 | D21: 0.05205479452 | E21: 10 | F21: 16800 | G21: 0 | H21: 20 | I21: 4 | J21: 1300 | K21: 5 | L21: 0 | M21: 19 | N21: 4 | O21: 4 | P21: 1 | Q21: 1 | T21: NO | U21: 0 | V21: 34.31 | W21: -103.2 | X21: 11.48 | Y21: 0.02464878108 | Z21: District 2 | AZ21: 14.98214286

Sheet Ranking Calculations
A1: ='Data Input'!A1 -> Location | B1: Ranking (1 to 100) | C1: ='Criteria & Importance'!B1 -> Ratio of Weather to Clear Crashes | D1: ='Criteria & Importance'!C1 -> Average annual snow (in) | E1: ='Criteria & Importance'!D1 -> 2013 AADT | F1: ='Criteria & Importance'!E1 -> Average Wind Gust | G1: ='Criteria & Importance'!F1 -> Local Altitude Range (meters) | H1: ='Criteria & Importance'!G1 -> Dist Patrol Yard (mi) | I1: ='Criteria & Importance'!H1 -> Altitude (Meters) | J1: ='Criteria & Importance'!I1 -> Snow Removal Priority | K1: ='Criteria & Importance'!J1 -> Average Road Grade 2 Miles | L1: ='Criteria & Importance'!K1 -> Average Annual Rain (in) | M1: ='Criteria & Importance'!L1 -> Dist ITS Unit (mi) | N1: ='Criteria & Importance'!M1 -> Fire Risk (0 Very High, 5 No Risk) | O1: ='Criteria & Importance'!N1 -> Distance to Power (mi) | P1: ='Criteria & Importance'!O1 -> Distance to Communication (mi) | Q1: ='Criteria & Importance'!P1 -> Local Environment | R1: ='Criteria & Importance'!Q1 -> Functional Class | S1: ='Criteria & Importance'!R1 -> In Tribal Land? | T1: ='Criteria & Importance'!S1 -> Ratio of Crash Rates Per 100M Vehicle Miles | U1: ='Criteria & Importance'!T1 -> Number of Weather Related Crashes | V1: ='Criteria & Importance'!U1 -> Comment 1 | W1: ='Criteria & Importance'!V1 -> Comment 2
A2: NM-150 MM10 (Taos Ski Valley) | B2: 56.4 | C2: =IF(1.33333333333333<=Ratio_Max, IF(1.33333333333333<=Ratio_Min, 0, (Ratio_Points*((1.33333333333333-Ratio_Min)/(Ratio_Max-Ratio_Min)))), Ratio_Points) -> 16 | D2: =IF(62.5<=Snow_Max, IF(62.5<=Snow_Min, 0, (Snow_Points*((62.5-Snow_Min)/(Snow_Max-Snow_Min)))), Snow_Points) -> 15 | E2: =IF(800<=AADT_Max, IF(800<=AADT_Min, 0, (AADT_Points*((800-AADT_Min)/(AADT_Max-AADT_Min)))), AADT_Points) -> 0 | F2: =IF(0<=Wind_Max, IF(0<=Wind_Min, 0, (Wind_Points*((0-Wind_Min)/(Wind_Max-Wind_Min)))), Wind_Points) -> 0 | G2: =IF(900<=Topo_Max, IF(900<=Topo_Min, 0, (Topo_Points*((900-Topo_Min)/(Topo_Max-Topo_Min)))), Topo_Points) -> 9 | H2: =IF((8-DPatrol_Best)>0, IF(8>=DPatrol_Max, 0, (DPatrol_Points*(1-((8-DPatrol_Best)/(DPatrol_Max-DPatrol_Best))))), (DPatrol_Points*((DPatrol_Best-(DPatrol_Best-8))/DPatrol_Best))) -> 5.6 | I2: =IF(2650<=Alt_Max, IF(2650<=Alt_Min, 0, (Alt_Points*((2650-Alt_Min)/(Alt_Max-Alt_Min)))), Alt_Points) -> 6 | J2: =IF(4<=SRP_Max, IF(4<=SRP_Min, 0, (SRP_Points*((4-SRP_Min)/(SRP_Max-SRP_Min)))), SRP_Points) -> 0 | K2: =IF(0<=RGrade_Max, IF(0<=RGrade_Min, 0, (RGrade_Points*((0-RGrade_Min)/(RGrade_Max-RGrade_Min)))), RGrade_Points) -> 0 | L2: =IF(21<=Rain_Max, IF(21<=Rain_Min, 0, (Rain_Points*((21-Rain_Min)/(Rain_Max-Rain_Min)))), Rain_Points) -> 4 | M2: =IF((12-DITS_Best)>0, IF(12>=DITS_Max, 0, (DITS_Points*(1-((12-DITS_Best)/(DITS_Max-DITS_Best))))), (DITS_Points*((DITS_Best-(DITS_Best-12))/DITS_Best))) -> 0 | N2: =IF(4<=Fire_Max, IF(4<=Fire_Min, 0, (Fire_Points*((4-Fire_Min)/(Fire_Max-Fire_Min)))), Fire_Points) -> 0.8 | O2: =IF(15>=DPower_Max, 1, 0) -> 1 | P2: =IF(15>=DComm_Max, 1, 0) -> 1 | S2: =IF(0 = 1, 1, 0) -> 0 | T2: =IF(20.053623388942<=Rate_Max, IF(20.053623388942<=Rate_Min, 0, (Rate_Points*((20.053623388942-Rate_Min)/(Rate_Max-Rate_Min)))), Rate_Points) -> 0 | U2: =IF(12<=WCrashNum_Max, IF(12<=WCrashNum_Min, 0, (WCrashNum_Points*((12-WCrashNum_Min)/(WCrashNum_Max-WCrashNum_Min)))), WCrashNum_Points) -> 0 | V2: District 5
A3: I-40 MM180 (West of Edgewood) | B3: 52.71620315 | C3: =IF(0.602739726027397<=Ratio_Max, IF(0.602739726027397<=Ratio_Min, 0, (Ratio_Points*((0.602739726027397-Ratio_Min)/(Ratio_Max-Ratio_Min)))), Ratio_Points) -> 12.37513172 | D3: =IF(25.6<=Snow_Max, IF(25.6<=Snow_Min, 0, (Snow_Points*((25.6-Snow_Min)/(Snow_Max-Snow_Min)))), Snow_Points) -> 10.2 | E3: =IF(28900<=AADT_Max, IF(28900<=AADT_Min, 0, (AADT_Points*((28900-AADT_Min)/(AADT_Max-AADT_Min)))), AADT_Points) -> 8.9625 | F3: 0 | G3: =IF(100<=Topo_Max, IF(100<=Topo_Min, 0, (Topo_Points*((100-Topo_Min)/(Topo_Max-Topo_Min)))), Topo_Points) -> 4 | H3: =IF((3.5-DPatrol_Best)>0, IF(3.5>=DPatrol_Max, 0, (DPatrol_Points*(1-((3.5-DPatrol_Best)/(DPatrol_Max-DPatrol_Best))))), (DPatrol_Points*((DPatrol_Best-(DPatrol_Best-3.5))/DPatrol_Best))) -> 2.45 | I3: =IF(2100<=Alt_Max, IF(2100<=Alt_Min, 0, (Alt_Points*((2100-Alt_Min)/(Alt_Max-Alt_Min)))), Alt_Points) -> 3.5 | J3: =IF(8<=SRP_Max, IF(8<=SRP_Min, 0, (SRP_Points*((8-SRP_Min)/(SRP_Max-SRP_Min)))), SRP_Points) -> 3.428571429 | K3: 0 | L3: =IF(19.5<=Rain_Max, IF(19.5<=Rain_Min, 0, (Rain_Points*((19.5-Rain_Min)/(Rain_Max-Rain_Min)))), Rain_Points) -> 4 | M3: =IF((2.5-DITS_Best)>0, IF(2.5>=DITS_Max, 0, (DITS_Points*(1-((2.5-DITS_Best)/(DITS_Max-DITS_Best))))), (DITS_Points*((DITS_Best-(DITS_Best-2.5))/DITS_Best))) -> 3 | N3: =IF(4<=Fire_Max, IF(4<=Fire_Min, 0, (Fire_Points*((4-Fire_Min)/(Fire_Max-Fire_Min)))), Fire_Points) -> 0.8 | O3: =IF(1>=DPower_Max, 1, 0) -> 0 | P3: =IF(1>=DComm_Max, 1, 0) -> 0 | S3: 0 | T3: =IF(0.632777981562249<=Rate_Max, IF(0.632777981562249<=Rate_Min, 0, (Rate_Points*((0.632777981562249-Rate_Min)/(Rate_Max-Rate_Min)))), Rate_Points) -> 0 | U3: =IF(44<=WCrashNum_Max, IF(44<=WCrashNum_Min, 0, (WCrashNum_Points*((44-WCrashNum_Min)/(WCrashNum_Max-WCrashNum_Min)))), WCrashNum_Points) -> 0 | V3: District 3
A4: I-40 MM173 (Tijeras Canyon) | B4: 50.81035245 | C4: =IF(0.26219512195122<=Ratio_Max, IF(0.26219512195122<=Ratio_Min, 0, (Ratio_Points*((0.26219512195122-Ratio_Min)/(Ratio_Max-Ratio_Min)))), Ratio_Points) -> 3.99249531 | D4: =IF(20.5<=Snow_Max, IF(20.5<=Snow_Min, 0, (Snow_Points*((20.5-Snow_Min)/(Snow_Max-Snow_Min)))), Snow_Points) -> 6.375 | E4: =IF(67600<=AADT_Max, IF(67600<=AADT_Min, 0, (AADT_Points*((67600-AADT_Min)/(AADT_Max-AADT_Min)))), AADT_Points) -> 15 | F4: 0 | G4: =IF(900<=Topo_Max, IF(900<=Topo_Min, 0, (Topo_Points*((900-Topo_Min)/(Topo_Max-Topo_Min)))), Topo_Points) -> 9 | H4: =IF((3-DPatrol_Best)>0, IF(3>=DPatrol_Max, 0, (DPatrol_Points*(1-((3-DPatrol_Best)/(DPatrol_Max-DPatrol_Best))))), (DPatrol_Points*((DPatrol_Best-(DPatrol_Best-3))/DPatrol_Best))) -> 2.1 | I4: =IF(1900<=Alt_Max, IF(1900<=Alt_Min, 0, (Alt_Points*((1900-Alt_Min)/(Alt_Max-Alt_Min)))), Alt_Points) -> 2.5 | J4: =IF(10<=SRP_Max, IF(10<=SRP_Min, 0, (SRP_Points*((10-SRP_Min)/(SRP_Max-SRP_Min)))), SRP_Points) -> 5.142857143 | K4: 0 | L4: =IF(20<=Rain_Max, IF(20<=Rain_Min, 0, (Rain_Points*((20-Rain_Min)/(Rain_Max-Rain_Min)))), Rain_Points) -> 4 | M4: =IF((2-DITS_Best)>0, IF(2>=DITS_Max, 0, (DITS_Points*(1-((2-DITS_Best)/(DITS_Max-DITS_Best))))), (DITS_Points*((DITS_Best-(DITS_Best-2))/DITS_Best))) -> 2.4 | N4: =IF(1.5<=Fire_Max, IF(1.5<=Fire_Min, 0, (Fire_Points*((1.5-Fire_Min)/(Fire_Max-Fire_Min)))), Fire_Points) -> 0.3 | O4: =IF(0>=DPower_Max, 1, 0) -> 0 | P4: =IF(0>=DComm_Max, 1, 0) -> 0 | S4: 0 | T4: =IF(0.0690472565242891<=Rate_Max, IF(0.0690472565242891<=Rate_Min, 0, (Rate_Points*((0.0690472565242891-Rate_Min)/(Rate_Max-Rate_Min)))), Rate_Points) -> 0 | U4: =IF(43<=WCrashNum_Max, IF(43<=WCrashNum_Min, 0, (WCrashNum_Points*((43-WCrashNum_Min)/(WCrashNum_Max-WCrashNum_Min)))), WCrashNum_Points) -> 0 | V4: District 3
A5: US-64 MM390 (Des Moines) | B5: 50.45 | C5: =IF(0.823529411764706<=Ratio_Max, IF(0.823529411764706<=Ratio_Min, 0, (Ratio_Points*((0.823529411764706-Ratio_Min)/(Ratio_Max-Ratio_Min)))), Ratio_Points) -> 16 | D5: =IF(35.5<=Snow_Max, IF(35.5<=Snow_Min, 0, (Snow_Points*((35.5-Snow_Min)/(Snow_Max-Snow_Min)))), Snow_Points) -> 15 | E5: =IF(3800<=AADT_Max, IF(3800<=AADT_Min, 0, (AADT_Points*((3800-AADT_Min)/(AADT_Max-AADT_Min)))), AADT_Points) -> 0 | F5: 0 | G5: =IF(200<=Topo_Max, IF(200<=Topo_Min, 0, (Topo_Points*((200-Topo_Min)/(Topo_Max-Topo_Min)))), Topo_Points) -> 9 | H5: =IF((4-DPatrol_Best)>0, IF(4>=DPatrol_Max, 0, (DPatrol_Points*(1-((4-DPatrol_Best)/(DPatrol_Max-DPatrol_Best))))), (DPatrol_Points*((DPatrol_Best-(DPatrol_Best-4))/DPatrol_Best))) -> 2.8 | I5: =IF(1970<=Alt_Max, IF(1970<=Alt_Min, 0, (Alt_Points*((1970-Alt_Min)/(Alt_Max-Alt_Min)))), Alt_Points) -> 2.85 | J5: =IF(4<=SRP_Max, IF(4<=SRP_Min, 0, (SRP_Points*((4-SRP_Min)/(SRP_Max-SRP_Min)))), SRP_Points) -> 0 | K5: 0 | L5: =IF(18<=Rain_Max, IF(18<=Rain_Min, 0, (Rain_Points*((18-Rain_Min)/(Rain_Max-Rain_Min)))), Rain_Points) -> 4 | M5: =IF((15.5-DITS_Best)>0, IF(15.5>=DITS_Max, 0, (DITS_Points*(1-((15.5-DITS_Best)/(DITS_Max-DITS_Best))))), (DITS_Points*((DITS_Best-(DITS_Best-15.5))/DITS_Best))) -> 0 | N5: =IF(4<=Fire_Max, IF(4<=Fire_Min, 0, (Fire_Points*((4-Fire_Min)/(Fire_Max-Fire_Min)))), Fire_Points) -> 0.8 | O5: =IF(0>=DPower_Max, 1, 0) -> 0 | P5: =IF(0>=DComm_Max, 1, 0) -> 0 | S5: 0 | T5: =IF(1.07621655731038<=Rate_Max, IF(1.07621655731038<=Rate_Min, 0, (Rate_Points*((1.07621655731038-Rate_Min)/(Rate_Max-Rate_Min)))), Rate_Points) -> 0 | U5: =IF(14<=WCrashNum_Max, IF(14<=WCrashNum_Min, 0, (WCrashNum_Points*((14-WCrashNum_Min)/(WCrashNum_Max-WCrashNum_Min)))), WCrashNum_Points) -> 0 | V5: District 4
A6: NM-38 MM18 (Red River) | B6: 49.53007326 | C6: =IF(0.476190476190476<=Ratio_Max, IF(0.476190476190476<=Ratio_Min, 0, (Ratio_Points*((0.476190476190476-Ratio_Min)/(Ratio_Max-Ratio_Min)))), Ratio_Points) -> 9.26007326 | D6: =IF(85<=Snow_Max, IF(85<=Snow_Min, 0, (Snow_Points*((85-Snow_Min)/(Snow_Max-Snow_Min)))), Snow_Points) -> 15 | E6: =IF(700<=AADT_Max, IF(700<=AADT_Min, 0, (AADT_Points*((700-AADT_Min)/(AADT_Max-AADT_Min)))), AADT_Points) -> 0 | F6: 0 | G6: =IF(600<=Topo_Max, IF(600<=Topo_Min, 0, (Topo_Points*((600-Topo_Min)/(Topo_Max-Topo_Min)))), Topo_Points) -> 9 | H6: =IF((8.1-DPatrol_Best)>0, IF(8.1>=DPatrol_Max, 0, (DPatrol_Points*(1-((8.1-DPatrol_Best)/(DPatrol_Max-DPatrol_Best))))), (DPatrol_Points*((DPatrol_Best-(DPatrol_Best-8.1))/DPatrol_Best))) -> 5.67 | I6: =IF(2750<=Alt_Max, IF(2750<=Alt_Min, 0, (Alt_Points*((2750-Alt_Min)/(Alt_Max-Alt_Min)))), Alt_Points) -> 6 | J6: =IF(4<=SRP_Max, IF(4<=SRP_Min, 0, (SRP_Points*((4-SRP_Min)/(SRP_Max-SRP_Min)))), SRP_Points) -> 0 | K6: 0 | L6: =IF(19.7<=Rain_Max, IF(19.7<=Rain_Min, 0, (Rain_Points*((19.7-Rain_Min)/(Rain_Max-Rain_Min)))), Rain_Points) -> 4 | M6: =IF((70-DITS_Best)>0, IF(70>=DITS_Max, 0, (DITS_Points*(1-((70-DITS_Best)/(DITS_Max-DITS_Best))))), (DITS_Points*((DITS_Best-(DITS_Best-70))/DITS_Best))) -> 0 | N6: =IF(3<=Fire_Max, IF(3<=Fire_Min, 0, (Fire_Points*((3-Fire_Min)/(Fire_Max-Fire_Min)))), Fire_Points) -> 0.6 | O6: =IF(7>=DPower_Max, 1, 0) -> 1 | P6: =IF(7>=DComm_Max, 1, 0) -> 1 | S6: 0 | T6: =IF(3.74700281928239<=Rate_Max, IF(3.74700281928239<=Rate_Min, 0, (Rate_Points*((3.74700281928239-Rate_Min)/(Rate_Max-Rate_Min)))), Rate_Points) -> 0 | U6: =IF(10<=WCrashNum_Max, IF(10<=WCrashNum_Min, 0, (WCrashNum_Points*((10-WCrashNum_Min)/(WCrashNum_Max-WCrashNum_Min)))), WCrashNum_Points) -> 0 | V6: District 4
A7: I-40/US-285 (Clines Corners) | B7: 47.39452381 | C7: =IF(0.882352941176471<=Ratio_Max, IF(0.882352941176471<=Ratio_Min, 0, (Ratio_Points*((0.882352941176471-Ratio_Min)/(Ratio_Max-Ratio_Min)))), Ratio_Points) -> 16 | D7: =IF(31.4<=Snow_Max, IF(31.4<=Snow_Min, 0, (Snow_Points*((31.4-Snow_Min)/(Snow_Max-Snow_Min)))), Snow_Points) -> 14.55 | E7: =IF(16000<=AADT_Max, IF(16000<=AADT_Min, 0, (AADT_Points*((16000-AADT_Min)/(AADT_Max-AADT_Min)))), AADT_Points) -> 4.125 | F7: 0 | G7: =IF(20<=Topo_Max, IF(20<=Topo_Min, 0, (Topo_Points*((20-Topo_Min)/(Topo_Max-Topo_Min)))), Topo_Points) -> 0 | H7: =IF((0.5-DPatrol_Best)>0, IF(0.5>=DPatrol_Max, 0, (DPatrol_Points*(1-((0.5-DPatrol_Best)/(DPatrol_Max-DPatrol_Best))))), (DPatrol_Points*((DPatrol_Best-(DPatrol_Best-0.5))/DPatrol_Best))) -> 0.35 | I7: =IF(2152<=Alt_Max, IF(2152<=Alt_Min, 0, (Alt_Points*((2152-Alt_Min)/(Alt_Max-Alt_Min)))), Alt_Points) -> 3.76 | J7: =IF(10<=SRP_Max, IF(10<=SRP_Min, 0, (SRP_Points*((10-SRP_Min)/(SRP_Max-SRP_Min)))), SRP_Points) -> 5.142857143 | K7: 0 | L7: =IF(15<=Rain_Max, IF(15<=Rain_Min, 0, (Rain_Points*((15-Rain_Min)/(Rain_Max-Rain_Min)))), Rain_Points) -> 2.666666667 | M7: =IF((0-DITS_Best)>0, IF(0>=DITS_Max, 0, (DITS_Points*(1-((0-DITS_Best)/(DITS_Max-DITS_Best))))), (DITS_Points*((DITS_Best-(DITS_Best-0))/DITS_Best))) -> 0 | N7: =IF(4<=Fire_Max, IF(4<=Fire_Min, 0, (Fire_Points*((4-Fire_Min)/(Fire_Max-Fire_Min)))), Fire_Points) -> 0.8 | O7: =IF(0>=DPower_Max, 1, 0) -> 0 | P7: =IF(0>=DComm_Max, 1, 0) -> 0 | S7: 0 | T7: =IF(7.86915793714746<=Rate_Max, IF(7.86915793714746<=Rate_Min, 0, (Rate_Points*((7.86915793714746-Rate_Min)/(Rate_Max-Rate_Min)))), Rate_Points) -> 0 | U7: =IF(15<=WCrashNum_Max, IF(15<=WCrashNum_Min, 0, (WCrashNum_Points*((15-WCrashNum_Min)/(WCrashNum_Max-WCrashNum_Min)))), WCrashNum_Points) -> 0 | V7: District 5
A8: US-64 MM273 (Palo Flechado Pass) | B8: 47.02613653 | C8: =IF(0.315068493150685<=Ratio_Max, IF(0.315068493150685<=Ratio_Min, 0, (Ratio_Points*((0.315068493150685-Ratio_Min)/(Ratio_Max-Ratio_Min)))), Ratio_Points) -> 5.293993678 | D8: =IF(55<=Snow_Max, IF(55<=Snow_Min, 0, (Snow_Points*((55-Snow_Min)/(Snow_Max-Snow_Min)))), Snow_Points) -> 15 | E8: =IF(1400<=AADT_Max, IF(1400<=AADT_Min, 0, (AADT_Points*((1400-AADT_Min)/(AADT_Max-AADT_Min)))), AADT_Points) -> 0 | F8: 0 | G8: =IF(400<=Topo_Max, IF(400<=Topo_Min, 0, (Topo_Points*((400-Topo_Min)/(Topo_Max-Topo_Min)))), Topo_Points) -> 9 | H8: =IF((11.5-DPatrol_Best)>0, IF(11.5>=DPatrol_Max, 0, (DPatrol_Points*(1-((11.5-DPatrol_Best)/(DPatrol_Max-DPatrol_Best))))), (DPatrol_Points*((DPatrol_Best-(DPatrol_Best-11.5))/DPatrol_Best))) -> 6.475 | I8: =IF(2780<=Alt_Max, IF(2780<=Alt_Min, 0, (Alt_Points*((2780-Alt_Min)/(Alt_Max-Alt_Min)))), Alt_Points) -> 6 | J8: =IF(5<=SRP_Max, IF(5<=SRP_Min, 0, (SRP_Points*((5-SRP_Min)/(SRP_Max-SRP_Min)))), SRP_Points) -> 0.8571428571 | K8: 0 | L8: =IF(24.6<=Rain_Max, IF(24.6<=Rain_Min, 0, (Rain_Points*((24.6-Rain_Min)/(Rain_Max-Rain_Min)))), Rain_Points) -> 4 | M8: =IF((19.5-DITS_Best)>0, IF(19.5>=DITS_Max, 0, (DITS_Points*(1-((19.5-DITS_Best)/(DITS_Max-DITS_Best))))), (DITS_Points*((DITS_Best-(DITS_Best-19.5))/DITS_Best))) -> 0 | N8: =IF(2<=Fire_Max, IF(2<=Fire_Min, 0, (Fire_Points*((2-Fire_Min)/(Fire_Max-Fire_Min)))), Fire_Points) -> 0.4 | O8: =IF(0>=DPower_Max, 1, 0) -> 0 | P8: =IF(0>=DComm_Max, 1, 0) -> 0 | S8: 0 | T8: =IF(1.08800492966519<=Rate_Max, IF(1.08800492966519<=Rate_Min, 0, (Rate_Points*((1.08800492966519-Rate_Min)/(Rate_Max-Rate_Min)))), Rate_Points) -> 0 | U8: =IF(23<=WCrashNum_Max, IF(23<=WCrashNum_Min, 0, (WCrashNum_Points*((23-WCrashNum_Min)/(WCrashNum_Max-WCrashNum_Min)))), WCrashNum_Points) -> 0 | V8: District 4/5
A9: I-25 MM331 (Serafina) | B9: 46.35337302 | C9: =IF(0.533333333333333<=Ratio_Max, IF(0.533333333333333<=Ratio_Min, 0, (Ratio_Points*((0.533333333333333-Ratio_Min)/(Ratio_Max-Ratio_Min)))), Ratio_Points) -> 10.66666667 | D9: =IF(34.5<=Snow_Max, IF(34.5<=Snow_Min, 0, (Snow_Points*((34.5-Snow_Min)/(Snow_Max-Snow_Min)))), Snow_Points) -> 15 | E9: =IF(8700<=AADT_Max, IF(8700<=AADT_Min, 0, (AADT_Points*((8700-AADT_Min)/(AADT_Max-AADT_Min)))), AADT_Points) -> 1.3875 | F9: 0 | G9: =IF(100<=Topo_Max, IF(100<=Topo_Min, 0, (Topo_Points*((100-Topo_Min)/(Topo_Max-Topo_Min)))), Topo_Points) -> 4 | H9: =IF((14-DPatrol_Best)>0, IF(14>=DPatrol_Max, 0, (DPatrol_Points*(1-((14-DPatrol_Best)/(DPatrol_Max-DPatrol_Best))))), (DPatrol_Points*((DPatrol_Best-(DPatrol_Best-14))/DPatrol_Best))) -> 5.6 | I9: =IF(1950<=Alt_Max, IF(1950<=Alt_Min, 0, (Alt_Points*((1950-Alt_Min)/(Alt_Max-Alt_Min)))), Alt_Points) -> 2.75 | J9: =IF(7<=SRP_Max, IF(7<=SRP_Min, 0, (SRP_Points*((7-SRP_Min)/(SRP_Max-SRP_Min)))), SRP_Points) -> 2.571428571 | K9: 0 | L9: =IF(17.5<=Rain_Max, IF(17.5<=Rain_Min, 0, (Rain_Points*((17.5-Rain_Min)/(Rain_Max-Rain_Min)))), Rain_Points) -> 3.777777778 | M9: =IF((38-DITS_Best)>0, IF(38>=DITS_Max, 0, (DITS_Points*(1-((38-DITS_Best)/(DITS_Max-DITS_Best))))), (DITS_Points*((DITS_Best-(DITS_Best-38))/DITS_Best))) -> 0 | N9: =IF(3<=Fire_Max, IF(3<=Fire_Min, 0, (Fire_Points*((3-Fire_Min)/(Fire_Max-Fire_Min)))), Fire_Points) -> 0.6 | O9: =IF(15>=DPower_Max, 1, 0) -> 1 | P9: =IF(15>=DComm_Max, 1, 0) -> 1 | S9: 0 | T9: =IF(1.12418041100176<=Rate_Max, IF(1.12418041100176<=Rate_Min, 0, (Rate_Points*((1.12418041100176-Rate_Min)/(Rate_Max-Rate_Min)))), Rate_Points) -> 0 | U9: =IF(16<=WCrashNum_Max, IF(16<=WCrashNum_Min, 0, (WCrashNum_Points*((16-WCrashNum_Min)/(WCrashNum_Max-WCrashNum_Min)))), WCrashNum_Points) -> 0 | V9: District 4
A10: US-60 MM260 (West of Vaughn) | B10: 43.35952381 | C10: =IF(1.125<=Ratio_Max, IF(1.125<=Ratio_Min, 0, (Ratio_Points*((1.125-Ratio_Min)/(Ratio_Max-Ratio_Min)))), Ratio_Points) -> 16 | D10: =IF(21<=Snow_Max, IF(21<=Snow_Min, 0, (Snow_Points*((21-Snow_Min)/(Snow_Max-Snow_Min)))), Snow_Points) -> 6.75 | E10: =IF(2500<=AADT_Max, IF(2500<=AADT_Min, 0, (AADT_Points*((2500-AADT_Min)/(AADT_Max-AADT_Min)))), AADT_Points) -> 0 | F10: 0 | G10: =IF(100<=Topo_Max, IF(100<=Topo_Min, 0, (Topo_Points*((100-Topo_Min)/(Topo_Max-Topo_Min)))), Topo_Points) -> 4 | H10: =IF((8-DPatrol_Best)>0, IF(8>=DPatrol_Max, 0, (DPatrol_Points*(1-((8-DPatrol_Best)/(DPatrol_Max-DPatrol_Best))))), (DPatrol_Points*((DPatrol_Best-(DPatrol_Best-8))/DPatrol_Best))) -> 5.6 | I10: =IF(1880<=Alt_Max, IF(1880<=Alt_Min, 0, (Alt_Points*((1880-Alt_Min)/(Alt_Max-Alt_Min)))), Alt_Points) -> 2.4 | J10: =IF(10<=SRP_Max, IF(10<=SRP_Min, 0, (SRP_Points*((10-SRP_Min)/(SRP_Max-SRP_Min)))), SRP_Points) -> 5.142857143 | K10: 0 | L10: =IF(15<=Rain_Max, IF(15<=Rain_Min, 0, (Rain_Points*((15-Rain_Min)/(Rain_Max-Rain_Min)))), Rain_Points) -> 2.666666667 | M10: =IF((32-DITS_Best)>0, IF(32>=DITS_Max, 0, (DITS_Points*(1-((32-DITS_Best)/(DITS_Max-DITS_Best))))), (DITS_Points*((DITS_Best-(DITS_Best-32))/DITS_Best))) -> 0 | N10: =IF(4<=Fire_Max, IF(4<=Fire_Min, 0, (Fire_Points*((4-Fire_Min)/(Fire_Max-Fire_Min)))), Fire_Points) -> 0.8 | O10: =IF(7>=DPower_Max, 1, 0) -> 1 | P10: =IF(7>=DComm_Max, 1, 0) -> 1 | S10: 0 | T10: =IF(3.01731941343311<=Rate_Max, IF(3.01731941343311<=Rate_Min, 0, (Rate_Points*((3.01731941343311-Rate_Min)/(Rate_Max-Rate_Min)))), Rate_Points) -> 0 | U10: =IF(9<=WCrashNum_Max, IF(9<=WCrashNum_Min, 0, (WCrashNum_Points*((9-WCrashNum_Min)/(WCrashNum_Max-WCrashNum_Min)))), WCrashNum_Points) -> 0 | V10: District 5
A11: I-40 MM70 (West of Grants) | B11: 43.21766998 | C11: =IF(0.684210526315789<=Ratio_Max, IF(0.684210526315789<=Ratio_Min, 0, (Ratio_Points*((0.684210526315789-Ratio_Min)/(Ratio_Max-Ratio_Min)))), Ratio_Points) -> 14.3805668 | D11: =IF(20.5<=Snow_Max, IF(20.5<=Snow_Min, 0, (Snow_Points*((20.5-Snow_Min)/(Snow_Max-Snow_Min)))), Snow_Points) -> 6.375 | E11: =IF(23100<=AADT_Max, IF(23100<=AADT_Min, 0, (AADT_Points*((23100-AADT_Min)/(AADT_Max-AADT_Min)))), AADT_Points) -> 6.7875 | F11: 0 | G11: =IF(50<=Topo_Max, IF(50<=Topo_Min, 0, (Topo_Points*((50-Topo_Min)/(Topo_Max-Topo_Min)))), Topo_Points) -> 1.5 | H11: =IF((7-DPatrol_Best)>0, IF(7>=DPatrol_Max, 0, (DPatrol_Points*(1-((7-DPatrol_Best)/(DPatrol_Max-DPatrol_Best))))), (DPatrol_Points*((DPatrol_Best-(DPatrol_Best-7))/DPatrol_Best))) -> 4.9 | I11: =IF(2060<=Alt_Max, IF(2060<=Alt_Min, 0, (Alt_Points*((2060-Alt_Min)/(Alt_Max-Alt_Min)))), Alt_Points) -> 3.3 | J11: =IF(9<=SRP_Max, IF(9<=SRP_Min, 0, (SRP_Points*((9-SRP_Min)/(SRP_Max-SRP_Min)))), SRP_Points) -> 4.285714286 | K11: 0 | L11: =IF(11<=Rain_Max, IF(11<=Rain_Min, 0, (Rain_Points*((11-Rain_Min)/(Rain_Max-Rain_Min)))), Rain_Points) -> 0.8888888889 | M11: =IF((50-DITS_Best)>0, IF(50>=DITS_Max, 0, (DITS_Points*(1-((50-DITS_Best)/(DITS_Max-DITS_Best))))), (DITS_Points*((DITS_Best-(DITS_Best-50))/DITS_Best))) -> 0 | N11: =IF(4<=Fire_Max, IF(4<=Fire_Min, 0, (Fire_Points*((4-Fire_Min)/(Fire_Max-Fire_Min)))), Fire_Points) -> 0.8 | O11: =IF(6>=DPower_Max, 1, 0) -> 1 | P11: =IF(6>=DComm_Max, 1, 0) -> 1 | S11: 0 | T11: =IF(0.320875144799383<=Rate_Max, IF(0.320875144799383<=Rate_Min, 0, (Rate_Points*((0.320875144799383-Rate_Min)/(Rate_Max-Rate_Min)))), Rate_Points) -> 0 | U11: =IF(52<=WCrashNum_Max, IF(52<=WCrashNum_Min, 0, (WCrashNum_Points*((52-WCrashNum_Min)/(WCrashNum_Max-WCrashNum_Min)))), WCrashNum_Points) -> 0 | V11: District 6
A12: NM-550 MM110 | B12: 41.68630952 | C12: =IF(0.846153846153846<=Ratio_Max, IF(0.846153846153846<=Ratio_Min, 0, (Ratio_Points*((0.846153846153846-Ratio_Min)/(Ratio_Max-Ratio_Min)))), Ratio_Points) -> 16 | D12: =IF(26.4<=Snow_Max, IF(26.4<=Snow_Min, 0, (Snow_Points*((26.4-Snow_Min)/(Snow_Max-Snow_Min)))), Snow_Points) -> 10.8 | E12: =IF(5700<=AADT_Max, IF(5700<=AADT_Min, 0, (AADT_Points*((5700-AADT_Min)/(AADT_Max-AADT_Min)))), AADT_Points) -> 0.2625 | F12: 0 | G12: =IF(200<=Topo_Max, IF(200<=Topo_Min, 0, (Topo_Points*((200-Topo_Min)/(Topo_Max-Topo_Min)))), Topo_Points) -> 9 | H12: =IF((37-DPatrol_Best)>0, IF(37>=DPatrol_Max, 0, (DPatrol_Points*(1-((37-DPatrol_Best)/(DPatrol_Max-DPatrol_Best))))), (DPatrol_Points*((DPatrol_Best-(DPatrol_Best-37))/DPatrol_Best))) -> 0 | I12: =IF(2100<=Alt_Max, IF(2100<=Alt_Min, 0, (Alt_Points*((2100-Alt_Min)/(Alt_Max-Alt_Min)))), Alt_Points) -> 3.5 | J12: =IF(5<=SRP_Max, IF(5<=SRP_Min, 0, (SRP_Points*((5-SRP_Min)/(SRP_Max-SRP_Min)))), SRP_Points) -> 0.8571428571 | K12: 0 | L12: =IF(10.5<=Rain_Max, IF(10.5<=Rain_Min, 0, (Rain_Points*((10.5-Rain_Min)/(Rain_Max-Rain_Min)))), Rain_Points) -> 0.6666666667 | M12: =IF((65-DITS_Best)>0, IF(65>=DITS_Max, 0, (DITS_Points*(1-((65-DITS_Best)/(DITS_Max-DITS_Best))))), (DITS_Points*((DITS_Best-(DITS_Best-65))/DITS_Best))) -> 0 | N12: =IF(3<=Fire_Max, IF(3<=Fire_Min, 0, (Fire_Points*((3-Fire_Min)/(Fire_Max-Fire_Min)))), Fire_Points) -> 0.6 | O12: =IF(40>=DPower_Max, 1, 0) -> 1 | P12: =IF(40>=DComm_Max, 1, 0) -> 1 | S12: 0 | T12: =IF(0.655873194049061<=Rate_Max, IF(0.655873194049061<=Rate_Min, 0, (Rate_Points*((0.655873194049061-Rate_Min)/(Rate_Max-Rate_Min)))), Rate_Points) -> 0 | U12: =IF(44<=WCrashNum_Max, IF(44<=WCrashNum_Min, 0, (WCrashNum_Points*((44-WCrashNum_Min)/(WCrashNum_Max-WCrashNum_Min)))), WCrashNum_Points) -> 0 | V12: District 5
A13: I-25 MM268 (La Bajada) | B13: 41.16065645 | C13: =IF(0.252631578947368<=Ratio_Max, IF(0.252631578947368<=Ratio_Min, 0, (Ratio_Points*((0.252631578947368-Ratio_Min)/(Ratio_Max-Ratio_Min)))), Ratio_Points) -> 3.75708502 | D13: =IF(20.5<=Snow_Max, IF(20.5<=Snow_Min, 0, (Snow_Points*((20.5-Snow_Min)/(Snow_Max-Snow_Min)))), Snow_Points) -> 6.375 | E13: =IF(33800<=AADT_Max, IF(33800<=AADT_Min, 0, (AADT_Points*((33800-AADT_Min)/(AADT_Max-AADT_Min)))), AADT_Points) -> 10.8 | F13: 0 | G13: =IF(75<=Topo_Max, IF(75<=Topo_Min, 0, (Topo_Points*((75-Topo_Min)/(Topo_Max-Topo_Min)))), Topo_Points) -> 2.75 | H13: =IF((9-DPatrol_Best)>0, IF(9>=DPatrol_Max, 0, (DPatrol_Points*(1-((9-DPatrol_Best)/(DPatrol_Max-DPatrol_Best))))), (DPatrol_Points*((DPatrol_Best-(DPatrol_Best-9))/DPatrol_Best))) -> 6.3 | I13: =IF(1850<=Alt_Max, IF(1850<=Alt_Min, 0, (Alt_Points*((1850-Alt_Min)/(Alt_Max-Alt_Min)))), Alt_Points) -> 2.25 | J13: =IF(8<=SRP_Max, IF(8<=SRP_Min, 0, (SRP_Points*((8-SRP_Min)/(SRP_Max-SRP_Min)))), SRP_Points) -> 3.428571429 | K13: 0 | L13: =IF(13.5<=Rain_Max, IF(13.5<=Rain_Min, 0, (Rain_Points*((13.5-Rain_Min)/(Rain_Max-Rain_Min)))), Rain_Points) -> 2 | M13: =IF((3-DITS_Best)>0, IF(3>=DITS_Max, 0, (DITS_Points*(1-((3-DITS_Best)/(DITS_Max-DITS_Best))))), (DITS_Points*((DITS_Best-(DITS_Best-3))/DITS_Best))) -> 2.7 | N13: =IF(4<=Fire_Max, IF(4<=Fire_Min, 0, (Fire_Points*((4-Fire_Min)/(Fire_Max-Fire_Min)))), Fire_Points) -> 0.8 | O13: =IF(7>=DPower_Max, 1, 0) -> 1 | P13: =IF(7>=DComm_Max, 1, 0) -> 1 | S13: 0 | T13: =IF(0.172369979923638<=Rate_Max, IF(0.172369979923638<=Rate_Min, 0, (Rate_Points*((0.172369979923638-Rate_Min)/(Rate_Max-Rate_Min)))), Rate_Points) -> 0 | U13: =IF(24<=WCrashNum_Max, IF(24<=WCrashNum_Min, 0, (WCrashNum_Points*((24-WCrashNum_Min)/(WCrashNum_Max-WCrashNum_Min)))), WCrashNum_Points) -> 0 | V13: District 5
A14: NM-68 MM16 (Velarde) | B14: 36.93554318 | C14: =IF(0.280701754385965<=Ratio_Max, IF(0.280701754385965<=Ratio_Min, 0, (Ratio_Points*((0.280701754385965-Ratio_Min)/(Ratio_Max-Ratio_Min)))), Ratio_Points) -> 4.448043185 | D14: =IF(31.1<=Snow_Max, IF(31.1<=Snow_Min, 0, (Snow_Points*((31.1-Snow_Min)/(Snow_Max-Snow_Min)))), Snow_Points) -> 14.325 | E14: =IF(5700<=AADT_Max, IF(5700<=AADT_Min, 0, (AADT_Points*((5700-AADT_Min)/(AADT_Max-AADT_Min)))), AADT_Points) -> 0.2625 | F14: 0 | G14: =IF(360<=Topo_Max, IF(360<=Topo_Min, 0, (Topo_Points*((360-Topo_Min)/(Topo_Max-Topo_Min)))), Topo_Points) -> 9 | H14: =IF((7.5-DPatrol_Best)>0, IF(7.5>=DPatrol_Max, 0, (DPatrol_Points*(1-((7.5-DPatrol_Best)/(DPatrol_Max-DPatrol_Best))))), (DPatrol_Points*((DPatrol_Best-(DPatrol_Best-7.5))/DPatrol_Best))) -> 5.25 | I14: =IF(1770<=Alt_Max, IF(1770<=Alt_Min, 0, (Alt_Points*((1770-Alt_Min)/(Alt_Max-Alt_Min)))), Alt_Points) -> 1.85 | J14: =IF(4<=SRP_Max, IF(4<=SRP_Min, 0, (SRP_Points*((4-SRP_Min)/(SRP_Max-SRP_Min)))), SRP_Points) -> 0 | K14: 0 | L14: =IF(12.6<=Rain_Max, IF(12.6<=Rain_Min, 0, (Rain_Points*((12.6-Rain_Min)/(Rain_Max-Rain_Min)))), Rain_Points) -> 1.6 | M14: =IF((12-DITS_Best)>0, IF(12>=DITS_Max, 0, (DITS_Points*(1-((12-DITS_Best)/(DITS_Max-DITS_Best))))), (DITS_Points*((DITS_Best-(DITS_Best-12))/DITS_Best))) -> 0 | N14: =IF(1<=Fire_Max, IF(1<=Fire_Min, 0, (Fire_Points*((1-Fire_Min)/(Fire_Max-Fire_Min)))), Fire_Points) -> 0.2 | O14: =IF(0>=DPower_Max, 1, 0) -> 0 | P14: =IF(0>=DComm_Max, 1, 0) -> 0 | S14: 0 | T14: =IF(0.506457709306215<=Rate_Max, IF(0.506457709306215<=Rate_Min, 0, (Rate_Points*((0.506457709306215-Rate_Min)/(Rate_Max-Rate_Min)))), Rate_Points) -> 0 | U14: =IF(16<=WCrashNum_Max, IF(16<=WCrashNum_Min, 0, (WCrashNum_Points*((16-WCrashNum_Min)/(WCrashNum_Max-WCrashNum_Min)))), WCrashNum_Points) -> 0 | V14: District 5
A15: I-25 MM257 (San Felipe Pueblo) | B15: 29.80973748 | C15: =IF(0.273809523809524<=Ratio_Max, IF(0.273809523809524<=Ratio_Min, 0, (Ratio_Points*((0.273809523809524-Ratio_Min)/(Ratio_Max-Ratio_Min)))), Ratio_Points) -> 4.278388278 | D15: =IF(20.5<=Snow_Max, IF(20.5<=Snow_Min, 0, (Snow_Points*((20.5-Snow_Min)/(Snow_Max-Snow_Min)))), Snow_Points) -> 6.375 | E15: =IF(25000<=AADT_Max, IF(25000<=AADT_Min, 0, (AADT_Points*((25000-AADT_Min)/(AADT_Max-AADT_Min)))), AADT_Points) -> 7.5 | F15: 0 | G15: =IF(50<=Topo_Max, IF(50<=Topo_Min, 0, (Topo_Points*((50-Topo_Min)/(Topo_Max-Topo_Min)))), Topo_Points) -> 1.5 | H15: =IF((22-DPatrol_Best)>0, IF(22>=DPatrol_Max, 0, (DPatrol_Points*(1-((22-DPatrol_Best)/(DPatrol_Max-DPatrol_Best))))), (DPatrol_Points*((DPatrol_Best-(DPatrol_Best-22))/DPatrol_Best))) -> 2.8 | I15: =IF(1670<=Alt_Max, IF(1670<=Alt_Min, 0, (Alt_Points*((1670-Alt_Min)/(Alt_Max-Alt_Min)))), Alt_Points) -> 1.35 | J15: =IF(8<=SRP_Max, IF(8<=SRP_Min, 0, (SRP_Points*((8-SRP_Min)/(SRP_Max-SRP_Min)))), SRP_Points) -> 3.428571429 | K15: 0 | L15: =IF(13<=Rain_Max, IF(13<=Rain_Min, 0, (Rain_Points*((13-Rain_Min)/(Rain_Max-Rain_Min)))), Rain_Points) -> 1.777777778 | M15: =IF((14-DITS_Best)>0, IF(14>=DITS_Max, 0, (DITS_Points*(1-((14-DITS_Best)/(DITS_Max-DITS_Best))))), (DITS_Points*((DITS_Best-(DITS_Best-14))/DITS_Best))) -> 0 | N15: =IF(4<=Fire_Max, IF(4<=Fire_Min, 0, (Fire_Points*((4-Fire_Min)/(Fire_Max-Fire_Min)))), Fire_Points) -> 0.8 | O15: =IF(0>=DPower_Max, 1, 0) -> 0 | P15: =IF(0>=DComm_Max, 1, 0) -> 0 | S15: =IF(1 = 1, 1, 0) -> 1 | T15: =IF(0.22426399968018<=Rate_Max, IF(0.22426399968018<=Rate_Min, 0, (Rate_Points*((0.22426399968018-Rate_Min)/(Rate_Max-Rate_Min)))), Rate_Points) -> 0 | U15: =IF(23<=WCrashNum_Max, IF(23<=WCrashNum_Min, 0, (WCrashNum_Points*((23-WCrashNum_Min)/(WCrashNum_Max-WCrashNum_Min)))), WCrashNum_Points) -> 0 | V15: District 3
A16: NM-550 MM27 (San Ysidro) | B16: 29.29407196 | C16: =IF(0.513513513513513<=Ratio_Max, IF(0.513513513513513<=Ratio_Min, 0, (Ratio_Points*((0.513513513513513-Ratio_Min)/(Ratio_Max-Ratio_Min)))), Ratio_Points) -> 10.17879418 | D16: =IF(20.2<=Snow_Max, IF(20.2<=Snow_Min, 0, (Snow_Points*((20.2-Snow_Min)/(Snow_Max-Snow_Min)))), Snow_Points) -> 6.15 | E16: =IF(5100<=AADT_Max, IF(5100<=AADT_Min, 0, (AADT_Points*((5100-AADT_Min)/(AADT_Max-AADT_Min)))), AADT_Points) -> 0.0375 | F16: 0 | G16: =IF(150<=Topo_Max, IF(150<=Topo_Min, 0, (Topo_Points*((150-Topo_Min)/(Topo_Max-Topo_Min)))), Topo_Points) -> 6.5 | H16: =IF((3.5-DPatrol_Best)>0, IF(3.5>=DPatrol_Max, 0, (DPatrol_Points*(1-((3.5-DPatrol_Best)/(DPatrol_Max-DPatrol_Best))))), (DPatrol_Points*((DPatrol_Best-(DPatrol_Best-3.5))/DPatrol_Best))) -> 2.45 | I16: =IF(1680<=Alt_Max, IF(1680<=Alt_Min, 0, (Alt_Points*((1680-Alt_Min)/(Alt_Max-Alt_Min)))), Alt_Points) -> 1.4 | J16: =IF(3<=SRP_Max, IF(3<=SRP_Min, 0, (SRP_Points*((3-SRP_Min)/(SRP_Max-SRP_Min)))), SRP_Points) -> 0 | K16: 0 | L16: =IF(13<=Rain_Max, IF(13<=Rain_Min, 0, (Rain_Points*((13-Rain_Min)/(Rain_Max-Rain_Min)))), Rain_Points) -> 1.777777778 | M16: =IF((100-DITS_Best)>0, IF(100>=DITS_Max, 0, (DITS_Points*(1-((100-DITS_Best)/(DITS_Max-DITS_Best))))), (DITS_Points*((DITS_Best-(DITS_Best-100))/DITS_Best))) -> 0 | N16: =IF(4<=Fire_Max, IF(4<=Fire_Min, 0, (Fire_Points*((4-Fire_Min)/(Fire_Max-Fire_Min)))), Fire_Points) -> 0.8 | O16: =IF(3.5>=DPower_Max, 1, 0) -> 1 | P16: =IF(3.5>=DComm_Max, 1, 0) -> 1 | S16: =IF(0 = 1, 1, 0) -> 0 | T16: =IF(0.354348190560829<=Rate_Max, IF(0.354348190560829<=Rate_Min, 0, (Rate_Points*((0.354348190560829-Rate_Min)/(Rate_Max-Rate_Min)))), Rate_Points) -> 0 | U16: =IF(19<=WCrashNum_Max, IF(19<=WCrashNum_Min, 0, (WCrashNum_Points*((19-WCrashNum_Min)/(WCrashNum_Max-WCrashNum_Min)))), WCrashNum_Points) -> 0 | V16: District 6
A17: US-70 MM255 (South of Ruidoso) | B17: 29.17434371 | C17: =IF(0.102222222222222<=Ratio_Max, IF(0.102222222222222<=Ratio_Min, 0, (Ratio_Points*((0.102222222222222-Ratio_Min)/(Ratio_Max-Ratio_Min)))), Ratio_Points) -> 0.0547008547 | D17: =IF(23<=Snow_Max, IF(23<=Snow_Min, 0, (Snow_Points*((23-Snow_Min)/(Snow_Max-Snow_Min)))), Snow_Points) -> 8.25 | E17: =IF(7300<=AADT_Max, IF(7300<=AADT_Min, 0, (AADT_Points*((7300-AADT_Min)/(AADT_Max-AADT_Min)))), AADT_Points) -> 0.8625 | F17: 0 | G17: =IF(200<=Topo_Max, IF(200<=Topo_Min, 0, (Topo_Points*((200-Topo_Min)/(Topo_Max-Topo_Min)))), Topo_Points) -> 9 | H17: =IF((25-DPatrol_Best)>0, IF(25>=DPatrol_Max, 0, (DPatrol_Points*(1-((25-DPatrol_Best)/(DPatrol_Max-DPatrol_Best))))), (DPatrol_Points*((DPatrol_Best-(DPatrol_Best-25))/DPatrol_Best))) -> 1.75 | I17: =IF(2200<=Alt_Max, IF(2200<=Alt_Min, 0, (Alt_Points*((2200-Alt_Min)/(Alt_Max-Alt_Min)))), Alt_Points) -> 4 | J17: =IF(5<=SRP_Max, IF(5<=SRP_Min, 0, (SRP_Points*((5-SRP_Min)/(SRP_Max-SRP_Min)))), SRP_Points) -> 0.8571428571 | K17: 0 | L17: =IF(20<=Rain_Max, IF(20<=Rain_Min, 0, (Rain_Points*((20-Rain_Min)/(Rain_Max-Rain_Min)))), Rain_Points) -> 4 | M17: =IF((90-DITS_Best)>0, IF(90>=DITS_Max, 0, (DITS_Points*(1-((90-DITS_Best)/(DITS_Max-DITS_Best))))), (DITS_Points*((DITS_Best-(DITS_Best-90))/DITS_Best))) -> 0 | N17: =IF(2<=Fire_Max, IF(2<=Fire_Min, 0, (Fire_Points*((2-Fire_Min)/(Fire_Max-Fire_Min)))), Fire_Points) -> 0.4 | O17: =IF(7>=DPower_Max, 1, 0) -> 1 | P17: =IF(7>=DComm_Max, 1, 0) -> 1 | S17: =IF(1 = 1, 1, 0) -> 1 | T17: =IF(0.109863987666764<=Rate_Max, IF(0.109863987666764<=Rate_Min, 0, (Rate_Points*((0.109863987666764-Rate_Min)/(Rate_Max-Rate_Min)))), Rate_Points) -> 0 | U17: =IF(23<=WCrashNum_Max, IF(23<=WCrashNum_Min, 0, (WCrashNum_Points*((23-WCrashNum_Min)/(WCrashNum_Max-WCrashNum_Min)))), WCrashNum_Points) -> 0 | V17: District 2
A18: I-25/I-40 (The Big I) | B18: 28.14388889 | C18: =IF(0.0532896085263374<=Ratio_Max, IF(0.0532896085263374<=Ratio_Min, 0, (Ratio_Points*((0.0532896085263374-Ratio_Min)/(Ratio_Max-Ratio_Min)))), Ratio_Points) -> 0 | D18: =IF(12.5<=Snow_Max, IF(12.5<=Snow_Min, 0, (Snow_Points*((12.5-Snow_Min)/(Snow_Max-Snow_Min)))), Snow_Points) -> 0.375 | E18: =IF(180400<=AADT_Max, IF(180400<=AADT_Min, 0, (AADT_Points*((180400-AADT_Min)/(AADT_Max-AADT_Min)))), AADT_Points) -> 15 | F18: 0 | G18: =IF(50<=Topo_Max, IF(50<=Topo_Min, 0, (Topo_Points*((50-Topo_Min)/(Topo_Max-Topo_Min)))), Topo_Points) -> 1.5 | H18: =IF((3-DPatrol_Best)>0, IF(3>=DPatrol_Max, 0, (DPatrol_Points*(1-((3-DPatrol_Best)/(DPatrol_Max-DPatrol_Best))))), (DPatrol_Points*((DPatrol_Best-(DPatrol_Best-3))/DPatrol_Best))) -> 2.1 | I18: =IF(1536<=Alt_Max, IF(1536<=Alt_Min, 0, (Alt_Points*((1536-Alt_Min)/(Alt_Max-Alt_Min)))), Alt_Points) -> 0.68 | J18: =IF(22<=SRP_Max, IF(22<=SRP_Min, 0, (SRP_Points*((22-SRP_Min)/(SRP_Max-SRP_Min)))), SRP_Points) -> 6 | K18: 0 | L18: =IF(11<=Rain_Max, IF(11<=Rain_Min, 0, (Rain_Points*((11-Rain_Min)/(Rain_Max-Rain_Min)))), Rain_Points) -> 0.8888888889 | M18: =IF((0.5-DITS_Best)>0, IF(0.5>=DITS_Max, 0, (DITS_Points*(1-((0.5-DITS_Best)/(DITS_Max-DITS_Best))))), (DITS_Points*((DITS_Best-(DITS_Best-0.5))/DITS_Best))) -> 0.6 | N18: =IF(5<=Fire_Max, IF(5<=Fire_Min, 0, (Fire_Points*((5-Fire_Min)/(Fire_Max-Fire_Min)))), Fire_Points) -> 1 | O18: =IF(0>=DPower_Max, 1, 0) -> 0 | P18: =IF(0>=DComm_Max, 1, 0) -> 0 | S18: =IF(0 = 1, 1, 0) -> 0 | T18: =IF(0.0187339512335522<=Rate_Max, IF(0.0187339512335522<=Rate_Min, 0, (Rate_Points*((0.0187339512335522-Rate_Min)/(Rate_Max-Rate_Min)))), Rate_Points) -> 0 | U18: =IF(260<=WCrashNum_Max, IF(260<=WCrashNum_Min, 0, (WCrashNum_Points*((260-WCrashNum_Min)/(WCrashNum_Max-WCrashNum_Min)))), WCrashNum_Points) -> 0 | V18: District 3
A19: NM-602 MM25 (South of Gallup) | B19: 27.25628121 | C19: =IF(0.173267326732673<=Ratio_Max, IF(0.173267326732673<=Ratio_Min, 0, (Ratio_Points*((0.173267326732673-Ratio_Min)/(Ratio_Max-Ratio_Min)))), Ratio_Points) -> 1.803503427 | D19: =IF(26.5<=Snow_Max, IF(26.5<=Snow_Min, 0, (Snow_Points*((26.5-Snow_Min)/(Snow_Max-Snow_Min)))), Snow_Points) -> 10.875 | E19: =IF(8200<=AADT_Max, IF(8200<=AADT_Min, 0, (AADT_Points*((8200-AADT_Min)/(AADT_Max-AADT_Min)))), AADT_Points) -> 1.2 | F19: 0 | G19: =IF(100<=Topo_Max, IF(100<=Topo_Min, 0, (Topo_Points*((100-Topo_Min)/(Topo_Max-Topo_Min)))), Topo_Points) -> 4 | H19: =IF((5-DPatrol_Best)>0, IF(5>=DPatrol_Max, 0, (DPatrol_Points*(1-((5-DPatrol_Best)/(DPatrol_Max-DPatrol_Best))))), (DPatrol_Points*((DPatrol_Best-(DPatrol_Best-5))/DPatrol_Best))) -> 3.5 | I19: =IF(2060<=Alt_Max, IF(2060<=Alt_Min, 0, (Alt_Points*((2060-Alt_Min)/(Alt_Max-Alt_Min)))), Alt_Points) -> 3.3 | J19: =IF(3<=SRP_Max, IF(3<=SRP_Min, 0, (SRP_Points*((3-SRP_Min)/(SRP_Max-SRP_Min)))), SRP_Points) -> 0 | K19: 0 | L19: =IF(13<=Rain_Max, IF(13<=Rain_Min, 0, (Rain_Points*((13-Rain_Min)/(Rain_Max-Rain_Min)))), Rain_Points) -> 1.777777778 | M19: =IF((29-DITS_Best)>0, IF(29>=DITS_Max, 0, (DITS_Points*(1-((29-DITS_Best)/(DITS_Max-DITS_Best))))), (DITS_Points*((DITS_Best-(DITS_Best-29))/DITS_Best))) -> 0 | N19: =IF(4<=Fire_Max, IF(4<=Fire_Min, 0, (Fire_Points*((4-Fire_Min)/(Fire_Max-Fire_Min)))), Fire_Points) -> 0.8 | O19: =IF(4>=DPower_Max, 1, 0) -> 1 | P19: =IF(4>=DComm_Max, 1, 0) -> 1 | S19: =IF(1 = 1, 1, 0) -> 1 | T19: =IF(0.080571822181552<=Rate_Max, IF(0.080571822181552<=Rate_Min, 0, (Rate_Points*((0.080571822181552-Rate_Min)/(Rate_Max-Rate_Min)))), Rate_Points) -> 0 | U19: =IF(35<=WCrashNum_Max, IF(35<=WCrashNum_Min, 0, (WCrashNum_Points*((35-WCrashNum_Min)/(WCrashNum_Max-WCrashNum_Min)))), WCrashNum_Points) -> 0 | V19: District 6
A20: I-40 MM320 (West of Tucumcari) | B20: 25.12954823 | C20: =IF(0.266666666666667<=Ratio_Max, IF(0.266666666666667<=Ratio_Min, 0, (Ratio_Points*((0.266666666666667-Ratio_Min)/(Ratio_Max-Ratio_Min)))), Ratio_Points) -> 4.102564103 | D20: =IF(15.4<=Snow_Max, IF(15.4<=Snow_Min, 0, (Snow_Points*((15.4-Snow_Min)/(Snow_Max-Snow_Min)))), Snow_Points) -> 2.55 | E20: =IF(21000<=AADT_Max, IF(21000<=AADT_Min, 0, (AADT_Points*((21000-AADT_Min)/(AADT_Max-AADT_Min)))), AADT_Points) -> 6 | F20: 0 | G20: =IF(20<=Topo_Max, IF(20<=Topo_Min, 0, (Topo_Points*((20-Topo_Min)/(Topo_Max-Topo_Min)))), Topo_Points) -> 0 | H20: =IF((13-DPatrol_Best)>0, IF(13>=DPatrol_Max, 0, (DPatrol_Points*(1-((13-DPatrol_Best)/(DPatrol_Max-DPatrol_Best))))), (DPatrol_Points*((DPatrol_Best-(DPatrol_Best-13))/DPatrol_Best))) -> 5.95 | I20: =IF(1370<=Alt_Max, IF(1370<=Alt_Min, 0, (Alt_Points*((1370-Alt_Min)/(Alt_Max-Alt_Min)))), Alt_Points) -> 0 | J20: =IF(7<=SRP_Max, IF(7<=SRP_Min, 0, (SRP_Points*((7-SRP_Min)/(SRP_Max-SRP_Min)))), SRP_Points) -> 2.571428571 | K20: 0 | L20: =IF(17<=Rain_Max, IF(17<=Rain_Min, 0, (Rain_Points*((17-Rain_Min)/(Rain_Max-Rain_Min)))), Rain_Points) -> 3.555555556 | M20: =IF((130-DITS_Best)>0, IF(130>=DITS_Max, 0, (DITS_Points*(1-((130-DITS_Best)/(DITS_Max-DITS_Best))))), (DITS_Points*((DITS_Best-(DITS_Best-130))/DITS_Best))) -> 0 | N20: =IF(2<=Fire_Max, IF(2<=Fire_Min, 0, (Fire_Points*((2-Fire_Min)/(Fire_Max-Fire_Min)))), Fire_Points) -> 0.4 | O20: =IF(10>=DPower_Max, 1, 0) -> 1 | P20: =IF(10>=DComm_Max, 1, 0) -> 1 | S20: =IF(0 = 1, 1, 0) -> 0 | T20: =IF(0.113028498299133<=Rate_Max, IF(0.113028498299133<=Rate_Min, 0, (Rate_Points*((0.113028498299133-Rate_Min)/(Rate_Max-Rate_Min)))), Rate_Points) -> 0 | U20: =IF(8<=WCrashNum_Max, IF(8<=WCrashNum_Min, 0, (WCrashNum_Points*((8-WCrashNum_Min)/(WCrashNum_Max-WCrashNum_Min)))), WCrashNum_Points) -> 0 | V20: District 4
A21: US-70 MM435 (South of Clovis) | B21: 14.98214286 | C21: =IF(0.0520547945205479<=Ratio_Max, IF(0.0520547945205479<=Ratio_Min, 0, (Ratio_Points*((0.0520547945205479-Ratio_Min)/(Ratio_Max-Ratio_Min)))), Ratio_Points) -> 0 | D21: =IF(10<=Snow_Max, IF(10<=Snow_Min, 0, (Snow_Points*((10-Snow_Min)/(Snow_Max-Snow_Min)))), Snow_Points) -> 0 | E21: =IF(16800<=AADT_Max, IF(16800<=AADT_Min, 0, (AADT_Points*((16800-AADT_Min)/(AADT_Max-AADT_Min)))), AADT_Points) -> 4.425 | F21: 0 | G21: =IF(20<=Topo_Max, IF(20<=Topo_Min, 0, (Topo_Points*((20-Topo_Min)/(Topo_Max-Topo_Min)))), Topo_Points) -> 0 | H21: =IF((4-DPatrol_Best)>0, IF(4>=DPatrol_Max, 0, (DPatrol_Points*(1-((4-DPatrol_Best)/(DPatrol_Max-DPatrol_Best))))), (DPatrol_Points*((DPatrol_Best-(DPatrol_Best-4))/DPatrol_Best))) -> 2.8 | I21: =IF(1300<=Alt_Max, IF(1300<=Alt_Min, 0, (Alt_Points*((1300-Alt_Min)/(Alt_Max-Alt_Min)))), Alt_Points) -> 0 | J21: =IF(5<=SRP_Max, IF(5<=SRP_Min, 0, (SRP_Points*((5-SRP_Min)/(SRP_Max-SRP_Min)))), SRP_Points) -> 0.8571428571 | K21: 0 | L21: =IF(19<=Rain_Max, IF(19<=Rain_Min, 0, (Rain_Points*((19-Rain_Min)/(Rain_Max-Rain_Min)))), Rain_Points) -> 4 | M21: =IF((4-DITS_Best)>0, IF(4>=DITS_Max, 0, (DITS_Points*(1-((4-DITS_Best)/(DITS_Max-DITS_Best))))), (DITS_Points*((DITS_Best-(DITS_Best-4))/DITS_Best))) -> 2.1 | N21: =IF(4<=Fire_Max, IF(4<=Fire_Min, 0, (Fire_Points*((4-Fire_Min)/(Fire_Max-Fire_Min)))), Fire_Points) -> 0.8 | O21: =IF(1>=DPower_Max, 1, 0) -> 0 | P21: =IF(1>=DComm_Max, 1, 0) -> 0 | S21: =IF(0 = 1, 1, 0) -> 0 | T21: =IF(0.0246487810752243<=Rate_Max, IF(0.0246487810752243<=Rate_Min, 0, (Rate_Points*((0.0246487810752243-Rate_Min)/(Rate_Max-Rate_Min)))), Rate_Points) -> 0 | U21: =IF(19<=WCrashNum_Max, IF(19<=WCrashNum_Min, 0, (WCrashNum_Points*((19-WCrashNum_Min)/(WCrashNum_Max-WCrashNum_Min)))), WCrashNum_Points) -> 0 | V21: District 2

Sheet Relative Ranking Calculations
A1: ='Data Input'!A1 -> Location | B1: Ranking (1 to 100) | C1: ='Criteria & Importance'!B1 -> Ratio of Weather to Clear Crashes | D1: ='Criteria & Importance'!C1 -> Average annual snow (in) | E1: ='Criteria & Importance'!D1 -> 2013 AADT | F1: ='Criteria & Importance'!E1 -> Average Wind Gust | G1: ='Criteria & Importance'!F1 -> Local Altitude Range (meters) | H1: ='Criteria & Importance'!G1 -> Dist Patrol Yard (mi) | I1: ='Criteria & Importance'!H1 -> Altitude (Meters) | J1: ='Criteria & Importance'!I1 -> Snow Removal Priority | K1: ='Criteria & Importance'!J1 -> Average Road Grade 2 Miles | L1: ='Criteria & Importance'!K1 -> Average Annual Rain (in) | M1: ='Criteria & Importance'!L1 -> Dist ITS Unit (mi) | N1: ='Criteria & Importance'!M1 -> Fire Risk (0 Very High, 5 No Risk) | O1: ='Criteria & Importance'!N1 -> Distance to Power (mi) | P1: ='Criteria & Importance'!O1 -> Distance to Communication (mi) | Q1: ='Criteria & Importance'!P1 -> Local Environment | R1: ='Criteria & Importance'!Q1 -> Functional Class | S1: ='Criteria & Importance'!R1 -> In Tribal Land? | T1: ='Criteria & Importance'!S1 -> Ratio of Crash Rates Per 100M Vehicle Miles | U1: ='Criteria & Importance'!T1 -> Number of Weather Related Crashes | V1: ='Criteria & Importance'!U1 -> Comment 1 | W1: ='Criteria & Importance'!V1 -> Comment 2
A2: NM-150 MM10 (Taos Ski Valley) | B2: 50.6258331 | C2: =IF(1.33333333333333<=Ratio_RelMax, IF(1.33333333333333<=Ratio_RelMin, 0, (Ratio_Points*((1.33333333333333-Ratio_RelMin)/(Ratio_RelMax-Ratio_RelMin)))), Ratio_Points) -> 16 | D2: =IF(62.5<=Snow_RelMax, IF(62.5<=Snow_RelMin, 0, (Snow_Points*((62.5-Snow_RelMin)/(Snow_RelMax-Snow_RelMin)))), Snow_Points) -> 10.5 | E2: =IF(800<=AADT_RelMax, IF(800<=AADT_RelMin, 0, (AADT_Points*((800-AADT_RelMin)/(AADT_RelMax-AADT_RelMin)))), AADT_Points) -> 0.008347245409 | F2: =IF(0<=Wind_RelMax, IF(0<=Wind_RelMin, 0, (Wind_Points*((0-Wind_RelMin)/(Wind_RelMax-Wind_RelMin)))), Wind_Points) -> 0 | G2: =IF(900<=Topo_RelMax, IF(900<=Topo_RelMin, 0, (Topo_Points*((900-Topo_RelMin)/(Topo_RelMax-Topo_RelMin)))), Topo_Points) -> 9 | H2: =IF((8-DPatrol_RelBest)>0, IF(8>=DPatrol_RelMax, 0, (DPatrol_Points*(1-((8-DPatrol_RelBest)/(DPatrol_RelMax-DPatrol_RelBest))))), (DPatrol_Points*((DPatrol_RelBest-(DPatrol_RelBest-8))/DPatrol_RelBest))) -> 5.6 | I2: =IF(2650<=Alt_RelMax, IF(2650<=Alt_RelMin, 0, (Alt_Points*((2650-Alt_RelMin)/(Alt_RelMax-Alt_RelMin)))), Alt_Points) -> 5.472972973 | J2: =IF(4<=SRP_RelMax, IF(4<=SRP_RelMin, 0, (SRP_Points*((4-SRP_RelMin)/(SRP_RelMax-SRP_RelMin)))), SRP_Points) -> 0.3157894737 | K2: =IF(0<=RGrade_RelMax, IF(0<=RGrade_RelMin, 0, (RGrade_Points*((0-RGrade_RelMin)/(RGrade_RelMax-RGrade_RelMin)))), RGrade_Points) -> 0 | L2: =IF(21<=Rain_RelMax, IF(21<=Rain_RelMin, 0, (Rain_Points*((21-Rain_RelMin)/(Rain_RelMax-Rain_RelMin)))), Rain_Points) -> 2.978723404 | M2: =IF((12-DITS_RelBest)>0, IF(12>=DITS_RelMax, 0, (DITS_Points*(1-((12-DITS_RelBest)/(DITS_RelMax-DITS_RelBest))))), (DITS_Points*((DITS_RelBest-(DITS_RelBest-12))/DITS_RelBest))) -> 0 | N2: =IF(4<=Fire_RelMax, IF(4<=Fire_RelMin, 0, (Fire_Points*((4-Fire_RelMin)/(Fire_RelMax-Fire_RelMin)))), Fire_Points) -> 0.75 | O2: =IF(15>=DPower_RelMax, 1, 0) -> 1 | P2: =IF(15>=DComm_RelMax, 1, 0) -> 1 | S2: =IF(0 = 1, 1, 0) -> 0 | T2: =IF(20.053623388942<=Rate_RelMax, IF(20.053623388942<=Rate_RelMin, 0, (Rate_Points*((20.053623388942-Rate_RelMin)/(Rate_RelMax-Rate_RelMin)))), Rate_Points) -> 0 | U2: =IF(12<=WCrashNum_RelMax, IF(12<=WCrashNum_RelMin, 0, (WCrashNum_Points*((12-WCrashNum_RelMin)/(WCrashNum_RelMax-WCrashNum_RelMin)))), WCrashNum_Points) -> 0 | V2: District 5 | AZ2: 56.4
A3: I-40 MM180 (West of Edgewood) | B3: 26.74417993 | C3: =IF(0.602739726027397<=Ratio_RelMax, IF(0.602739726027397<=Ratio_RelMin, 0, (Ratio_Points*((0.602739726027397-Ratio_RelMin)/(Ratio_RelMax-Ratio_RelMin)))), Ratio_Points) -> 6.876692801 | D3: =IF(25.6<=Snow_RelMax, IF(25.6<=Snow_RelMin, 0, (Snow_Points*((25.6-Snow_RelMin)/(Snow_RelMax-Snow_RelMin)))), Snow_Points) -> 3.12 | E3: =IF(28900<=AADT_RelMax, IF(28900<=AADT_RelMin, 0, (AADT_Points*((28900-AADT_RelMin)/(AADT_RelMax-AADT_RelMin)))), AADT_Points) -> 2.353923205 | F3: 0 | G3: =IF(100<=Topo_RelMax, IF(100<=Topo_RelMin, 0, (Topo_Points*((100-Topo_RelMin)/(Topo_RelMax-Topo_RelMin)))), Topo_Points) -> 0.8181818182 | H3: =IF((3.5-DPatrol_RelBest)>0, IF(3.5>=DPatrol_RelMax, 0, (DPatrol_Points*(1-((3.5-DPatrol_RelBest)/(DPatrol_RelMax-DPatrol_RelBest))))), (DPatrol_Points*((DPatrol_RelBest-(DPatrol_RelBest-3.5))/DPatrol_RelBest))) -> 2.45 | I3: =IF(2100<=Alt_RelMax, IF(2100<=Alt_RelMin, 0, (Alt_Points*((2100-Alt_RelMin)/(Alt_RelMax-Alt_RelMin)))), Alt_Points) -> 3.243243243 | J3: =IF(8<=SRP_RelMax, IF(8<=SRP_RelMin, 0, (SRP_Points*((8-SRP_RelMin)/(SRP_RelMax-SRP_RelMin)))), SRP_Points) -> 1.578947368 | K3: 0 | L3: =IF(19.5<=Rain_RelMax, IF(19.5<=Rain_RelMin, 0, (Rain_Points*((19.5-Rain_RelMin)/(Rain_RelMax-Rain_RelMin)))), Rain_Points) -> 2.553191489 | M3: =IF((2.5-DITS_RelBest)>0, IF(2.5>=DITS_RelMax, 0, (DITS_Points*(1-((2.5-DITS_RelBest)/(DITS_RelMax-DITS_RelBest))))), (DITS_Points*((DITS_RelBest-(DITS_RelBest-2.5))/DITS_RelBest))) -> 3 | N3: =IF(4<=Fire_RelMax, IF(4<=Fire_RelMin, 0, (Fire_Points*((4-Fire_RelMin)/(Fire_RelMax-Fire_RelMin)))), Fire_Points) -> 0.75 | O3: =IF(1>=DPower_RelMax, 1, 0) -> 0 | P3: =IF(1>=DComm_RelMax, 1, 0) -> 0 | S3: 0 | T3: =IF(0.632777981562249<=Rate_RelMax, IF(0.632777981562249<=Rate_RelMin, 0, (Rate_Points*((0.632777981562249-Rate_RelMin)/(Rate_RelMax-Rate_RelMin)))), Rate_Points) -> 0 | U3: =IF(44<=WCrashNum_RelMax, IF(44<=WCrashNum_RelMin, 0, (WCrashNum_Points*((44-WCrashNum_RelMin)/(WCrashNum_RelMax-WCrashNum_RelMin)))), WCrashNum_Points) -> 0 | V3: District 3 | AZ3: 52.71620315
A4: I-40 MM173 (Tijeras Canyon) | B4: 31.27143434 | C4: =IF(0.26219512195122<=Ratio_RelMax, IF(0.26219512195122<=Ratio_RelMin, 0, (Ratio_Points*((0.26219512195122-Ratio_RelMin)/(Ratio_RelMax-Ratio_RelMin)))), Ratio_Points) -> 2.624132956 | D4: =IF(20.5<=Snow_RelMax, IF(20.5<=Snow_RelMin, 0, (Snow_Points*((20.5-Snow_RelMin)/(Snow_RelMax-Snow_RelMin)))), Snow_Points) -> 2.1 | E4: =IF(67600<=AADT_RelMax, IF(67600<=AADT_RelMin, 0, (AADT_Points*((67600-AADT_RelMin)/(AADT_RelMax-AADT_RelMin)))), AADT_Points) -> 5.584307179 | F4: 0 | G4: =IF(900<=Topo_RelMax, IF(900<=Topo_RelMin, 0, (Topo_Points*((900-Topo_RelMin)/(Topo_RelMax-Topo_RelMin)))), Topo_Points) -> 9 | H4: =IF((3-DPatrol_RelBest)>0, IF(3>=DPatrol_RelMax, 0, (DPatrol_Points*(1-((3-DPatrol_RelBest)/(DPatrol_RelMax-DPatrol_RelBest))))), (DPatrol_Points*((DPatrol_RelBest-(DPatrol_RelBest-3))/DPatrol_RelBest))) -> 2.1 | I4: =IF(1900<=Alt_RelMax, IF(1900<=Alt_RelMin, 0, (Alt_Points*((1900-Alt_RelMin)/(Alt_RelMax-Alt_RelMin)))), Alt_Points) -> 2.432432432 | J4: =IF(10<=SRP_RelMax, IF(10<=SRP_RelMin, 0, (SRP_Points*((10-SRP_RelMin)/(SRP_RelMax-SRP_RelMin)))), SRP_Points) -> 2.210526316 | K4: 0 | L4: =IF(20<=Rain_RelMax, IF(20<=Rain_RelMin, 0, (Rain_Points*((20-Rain_RelMin)/(Rain_RelMax-Rain_RelMin)))), Rain_Points) -> 2.695035461 | M4: =IF((2-DITS_RelBest)>0, IF(2>=DITS_RelMax, 0, (DITS_Points*(1-((2-DITS_RelBest)/(DITS_RelMax-DITS_RelBest))))), (DITS_Points*((DITS_RelBest-(DITS_RelBest-2))/DITS_RelBest))) -> 2.4 | N4: =IF(1.5<=Fire_RelMax, IF(1.5<=Fire_RelMin, 0, (Fire_Points*((1.5-Fire_RelMin)/(Fire_RelMax-Fire_RelMin)))), Fire_Points) -> 0.125 | O4: =IF(0>=DPower_RelMax, 1, 0) -> 0 | P4: =IF(0>=DComm_RelMax, 1, 0) -> 0 | S4: 0 | T4: =IF(0.0690472565242891<=Rate_RelMax, IF(0.0690472565242891<=Rate_RelMin, 0, (Rate_Points*((0.0690472565242891-Rate_RelMin)/(Rate_RelMax-Rate_RelMin)))), Rate_Points) -> 0 | U4: =IF(43<=WCrashNum_RelMax, IF(43<=WCrashNum_RelMin, 0, (WCrashNum_Points*((43-WCrashNum_RelMin)/(WCrashNum_RelMax-WCrashNum_RelMin)))), WCrashNum_Points) -> 0 | V4: District 3 | AZ4: 50.81035245
A5: US-64 MM390 (Des Moines) | B5: 25.54314887 | C5: =IF(0.823529411764706<=Ratio_RelMax, IF(0.823529411764706<=Ratio_RelMin, 0, (Ratio_Points*((0.823529411764706-Ratio_RelMin)/(Ratio_RelMax-Ratio_RelMin)))), Ratio_Points) -> 9.633809903 | D5: =IF(35.5<=Snow_RelMax, IF(35.5<=Snow_RelMin, 0, (Snow_Points*((35.5-Snow_RelMin)/(Snow_RelMax-Snow_RelMin)))), Snow_Points) -> 5.1 | E5: =IF(3800<=AADT_RelMax, IF(3800<=AADT_RelMin, 0, (AADT_Points*((3800-AADT_RelMin)/(AADT_RelMax-AADT_RelMin)))), AADT_Points) -> 0.2587646077 | F5: 0 | G5: =IF(200<=Topo_RelMax, IF(200<=Topo_RelMin, 0, (Topo_Points*((200-Topo_RelMin)/(Topo_RelMax-Topo_RelMin)))), Topo_Points) -> 1.840909091 | H5: =IF((4-DPatrol_RelBest)>0, IF(4>=DPatrol_RelMax, 0, (DPatrol_Points*(1-((4-DPatrol_RelBest)/(DPatrol_RelMax-DPatrol_RelBest))))), (DPatrol_Points*((DPatrol_RelBest-(DPatrol_RelBest-4))/DPatrol_RelBest))) -> 2.8 | I5: =IF(1970<=Alt_RelMax, IF(1970<=Alt_RelMin, 0, (Alt_Points*((1970-Alt_RelMin)/(Alt_RelMax-Alt_RelMin)))), Alt_Points) -> 2.716216216 | J5: =IF(4<=SRP_RelMax, IF(4<=SRP_RelMin, 0, (SRP_Points*((4-SRP_RelMin)/(SRP_RelMax-SRP_RelMin)))), SRP_Points) -> 0.3157894737 | K5: 0 | L5: =IF(18<=Rain_RelMax, IF(18<=Rain_RelMin, 0, (Rain_Points*((18-Rain_RelMin)/(Rain_RelMax-Rain_RelMin)))), Rain_Points) -> 2.127659574 | M5: =IF((15.5-DITS_RelBest)>0, IF(15.5>=DITS_RelMax, 0, (DITS_Points*(1-((15.5-DITS_RelBest)/(DITS_RelMax-DITS_RelBest))))), (DITS_Points*((DITS_RelBest-(DITS_RelBest-15.5))/DITS_RelBest))) -> 0 | N5: =IF(4<=Fire_RelMax, IF(4<=Fire_RelMin, 0, (Fire_Points*((4-Fire_RelMin)/(Fire_RelMax-Fire_RelMin)))), Fire_Points) -> 0.75 | O5: =IF(0>=DPower_RelMax, 1, 0) -> 0 | P5: =IF(0>=DComm_RelMax, 1, 0) -> 0 | S5: 0 | T5: =IF(1.07621655731038<=Rate_RelMax, IF(1.07621655731038<=Rate_RelMin, 0, (Rate_Points*((1.07621655731038-Rate_RelMin)/(Rate_RelMax-Rate_RelMin)))), Rate_Points) -> 0 | U5: =IF(14<=WCrashNum_RelMax, IF(14<=WCrashNum_RelMin, 0, (WCrashNum_Points*((14-WCrashNum_RelMin)/(WCrashNum_RelMax-WCrashNum_RelMin)))), WCrashNum_Points) -> 0 | V5: District 4 | AZ5: 50.45
A6: NM-38 MM18 (Red River) | B6: 41.20232077 | C6: =IF(0.476190476190476<=Ratio_RelMax, IF(0.476190476190476<=Ratio_RelMin, 0, (Ratio_Points*((0.476190476190476-Ratio_RelMin)/(Ratio_RelMax-Ratio_RelMin)))), Ratio_Points) -> 5.296405661 | D6: =IF(85<=Snow_RelMax, IF(85<=Snow_RelMin, 0, (Snow_Points*((85-Snow_RelMin)/(Snow_RelMax-Snow_RelMin)))), Snow_Points) -> 15 | E6: =IF(700<=AADT_RelMax, IF(700<=AADT_RelMin, 0, (AADT_Points*((700-AADT_RelMin)/(AADT_RelMax-AADT_RelMin)))), AADT_Points) -> 0 | F6: 0 | G6: =IF(600<=Topo_RelMax, IF(600<=Topo_RelMin, 0, (Topo_Points*((600-Topo_RelMin)/(Topo_RelMax-Topo_RelMin)))), Topo_Points) -> 5.931818182 | H6: =IF((8.1-DPatrol_RelBest)>0, IF(8.1>=DPatrol_RelMax, 0, (DPatrol_Points*(1-((8.1-DPatrol_RelBest)/(DPatrol_RelMax-DPatrol_RelBest))))), (DPatrol_Points*((DPatrol_RelBest-(DPatrol_RelBest-8.1))/DPatrol_RelBest))) -> 5.67 | I6: =IF(2750<=Alt_RelMax, IF(2750<=Alt_RelMin, 0, (Alt_Points*((2750-Alt_RelMin)/(Alt_RelMax-Alt_RelMin)))), Alt_Points) -> 5.878378378 | J6: =IF(4<=SRP_RelMax, IF(4<=SRP_RelMin, 0, (SRP_Points*((4-SRP_RelMin)/(SRP_RelMax-SRP_RelMin)))), SRP_Points) -> 0.3157894737 | K6: 0 | L6: =IF(19.7<=Rain_RelMax, IF(19.7<=Rain_RelMin, 0, (Rain_Points*((19.7-Rain_RelMin)/(Rain_RelMax-Rain_RelMin)))), Rain_Points) -> 2.609929078 | M6: =IF((70-DITS_RelBest)>0, IF(70>=DITS_RelMax, 0, (DITS_Points*(1-((70-DITS_RelBest)/(DITS_RelMax-DITS_RelBest))))), (DITS_Points*((DITS_RelBest-(DITS_RelBest-70))/DITS_RelBest))) -> 0 | N6: =IF(3<=Fire_RelMax, IF(3<=Fire_RelMin, 0, (Fire_Points*((3-Fire_RelMin)/(Fire_RelMax-Fire_RelMin)))), Fire_Points) -> 0.5 | O6: =IF(7>=DPower_RelMax, 1, 0) -> 1 | P6: =IF(7>=DComm_RelMax, 1, 0) -> 1 | S6: 0 | T6: =IF(3.74700281928239<=Rate_RelMax, IF(3.74700281928239<=Rate_RelMin, 0, (Rate_Points*((3.74700281928239-Rate_RelMin)/(Rate_RelMax-Rate_RelMin)))), Rate_Points) -> 0 | U6: =IF(10<=WCrashNum_RelMax, IF(10<=WCrashNum_RelMin, 0, (WCrashNum_Points*((10-WCrashNum_RelMin)/(WCrashNum_RelMax-WCrashNum_RelMin)))), WCrashNum_Points) -> 0 | V6: District 4 | AZ6: 49.53007326
A7: I-40/US-285 (Clines Corners) | B7: 23.96667496 | C7: =IF(0.882352941176471<=Ratio_RelMax, IF(0.882352941176471<=Ratio_RelMin, 0, (Ratio_Points*((0.882352941176471-Ratio_RelMin)/(Ratio_RelMax-Ratio_RelMin)))), Ratio_Points) -> 10.3683703 | D7: =IF(31.4<=Snow_RelMax, IF(31.4<=Snow_RelMin, 0, (Snow_Points*((31.4-Snow_RelMin)/(Snow_RelMax-Snow_RelMin)))), Snow_Points) -> 4.28 | E7: =IF(16000<=AADT_RelMax, IF(16000<=AADT_RelMin, 0, (AADT_Points*((16000-AADT_RelMin)/(AADT_RelMax-AADT_RelMin)))), AADT_Points) -> 1.277128548 | F7: 0 | G7: =IF(20<=Topo_RelMax, IF(20<=Topo_RelMin, 0, (Topo_Points*((20-Topo_RelMin)/(Topo_RelMax-Topo_RelMin)))), Topo_Points) -> 0 | H7: =IF((0.5-DPatrol_RelBest)>0, IF(0.5>=DPatrol_RelMax, 0, (DPatrol_Points*(1-((0.5-DPatrol_RelBest)/(DPatrol_RelMax-DPatrol_RelBest))))), (DPatrol_Points*((DPatrol_RelBest-(DPatrol_RelBest-0.5))/DPatrol_RelBest))) -> 0.35 | I7: =IF(2152<=Alt_RelMax, IF(2152<=Alt_RelMin, 0, (Alt_Points*((2152-Alt_RelMin)/(Alt_RelMax-Alt_RelMin)))), Alt_Points) -> 3.454054054 | J7: =IF(10<=SRP_RelMax, IF(10<=SRP_RelMin, 0, (SRP_Points*((10-SRP_RelMin)/(SRP_RelMax-SRP_RelMin)))), SRP_Points) -> 2.210526316 | K7: 0 | L7: =IF(15<=Rain_RelMax, IF(15<=Rain_RelMin, 0, (Rain_Points*((15-Rain_RelMin)/(Rain_RelMax-Rain_RelMin)))), Rain_Points) -> 1.276595745 | M7: =IF((0-DITS_RelBest)>0, IF(0>=DITS_RelMax, 0, (DITS_Points*(1-((0-DITS_RelBest)/(DITS_RelMax-DITS_RelBest))))), (DITS_Points*((DITS_RelBest-(DITS_RelBest-0))/DITS_RelBest))) -> 0 | N7: =IF(4<=Fire_RelMax, IF(4<=Fire_RelMin, 0, (Fire_Points*((4-Fire_RelMin)/(Fire_RelMax-Fire_RelMin)))), Fire_Points) -> 0.75 | O7: =IF(0>=DPower_RelMax, 1, 0) -> 0 | P7: =IF(0>=DComm_RelMax, 1, 0) -> 0 | S7: 0 | T7: =IF(7.86915793714746<=Rate_RelMax, IF(7.86915793714746<=Rate_RelMin, 0, (Rate_Points*((7.86915793714746-Rate_RelMin)/(Rate_RelMax-Rate_RelMin)))), Rate_Points) -> 0 | U7: =IF(15<=WCrashNum_RelMax, IF(15<=WCrashNum_RelMin, 0, (WCrashNum_Points*((15-WCrashNum_RelMin)/(WCrashNum_RelMax-WCrashNum_RelMin)))), WCrashNum_Points) -> 0 | V7: District 5 | AZ7: 47.39452381
A8: US-64 MM273 (Palo Flechado Pass) | B8: 33.58576389 | C8: =IF(0.315068493150685<=Ratio_RelMax, IF(0.315068493150685<=Ratio_RelMin, 0, (Ratio_Points*((0.315068493150685-Ratio_RelMin)/(Ratio_RelMax-Ratio_RelMin)))), Ratio_Points) -> 3.284390592 | D8: =IF(55<=Snow_RelMax, IF(55<=Snow_RelMin, 0, (Snow_Points*((55-Snow_RelMin)/(Snow_RelMax-Snow_RelMin)))), Snow_Points) -> 9 | E8: =IF(1400<=AADT_RelMax, IF(1400<=AADT_RelMin, 0, (AADT_Points*((1400-AADT_RelMin)/(AADT_RelMax-AADT_RelMin)))), AADT_Points) -> 0.05843071786 | F8: 0 | G8: =IF(400<=Topo_RelMax, IF(400<=Topo_RelMin, 0, (Topo_Points*((400-Topo_RelMin)/(Topo_RelMax-Topo_RelMin)))), Topo_Points) -> 3.886363636 | H8: =IF((11.5-DPatrol_RelBest)>0, IF(11.5>=DPatrol_RelMax, 0, (DPatrol_Points*(1-((11.5-DPatrol_RelBest)/(DPatrol_RelMax-DPatrol_RelBest))))), (DPatrol_Points*((DPatrol_RelBest-(DPatrol_RelBest-11.5))/DPatrol_RelBest))) -> 6.475 | I8: =IF(2780<=Alt_RelMax, IF(2780<=Alt_RelMin, 0, (Alt_Points*((2780-Alt_RelMin)/(Alt_RelMax-Alt_RelMin)))), Alt_Points) -> 6 | J8: =IF(5<=SRP_RelMax, IF(5<=SRP_RelMin, 0, (SRP_Points*((5-SRP_RelMin)/(SRP_RelMax-SRP_RelMin)))), SRP_Points) -> 0.6315789474 | K8: 0 | L8: =IF(24.6<=Rain_RelMax, IF(24.6<=Rain_RelMin, 0, (Rain_Points*((24.6-Rain_RelMin)/(Rain_RelMax-Rain_RelMin)))), Rain_Points) -> 4 | M8: =IF((19.5-DITS_RelBest)>0, IF(19.5>=DITS_RelMax, 0, (DITS_Points*(1-((19.5-DITS_RelBest)/(DITS_RelMax-DITS_RelBest))))), (DITS_Points*((DITS_RelBest-(DITS_RelBest-19.5))/DITS_RelBest))) -> 0 | N8: =IF(2<=Fire_RelMax, IF(2<=Fire_RelMin, 0, (Fire_Points*((2-Fire_RelMin)/(Fire_RelMax-Fire_RelMin)))), Fire_Points) -> 0.25 | O8: =IF(0>=DPower_RelMax, 1, 0) -> 0 | P8: =IF(0>=DComm_RelMax, 1, 0) -> 0 | S8: 0 | T8: =IF(1.08800492966519<=Rate_RelMax, IF(1.08800492966519<=Rate_RelMin, 0, (Rate_Points*((1.08800492966519-Rate_RelMin)/(Rate_RelMax-Rate_RelMin)))), Rate_Points) -> 0 | U8: =IF(23<=WCrashNum_RelMax, IF(23<=WCrashNum_RelMin, 0, (WCrashNum_Points*((23-WCrashNum_RelMin)/(WCrashNum_RelMax-WCrashNum_RelMin)))), WCrashNum_Points) -> 0 | V8: District 4/5 | AZ8: 47.02613653
A9: I-25 MM331 (Serafina) | B9: 24.3800487 | C9: =IF(0.533333333333333<=Ratio_RelMax, IF(0.533333333333333<=Ratio_RelMin, 0, (Ratio_Points*((0.533333333333333-Ratio_RelMin)/(Ratio_RelMax-Ratio_RelMin)))), Ratio_Points) -> 6.009978617 | D9: =IF(34.5<=Snow_RelMax, IF(34.5<=Snow_RelMin, 0, (Snow_Points*((34.5-Snow_RelMin)/(Snow_RelMax-Snow_RelMin)))), Snow_Points) -> 4.9 | E9: =IF(8700<=AADT_RelMax, IF(8700<=AADT_RelMin, 0, (AADT_Points*((8700-AADT_RelMin)/(AADT_RelMax-AADT_RelMin)))), AADT_Points) -> 0.6677796327 | F9: 0 | G9: =IF(100<=Topo_RelMax, IF(100<=Topo_RelMin, 0, (Topo_Points*((100-Topo_RelMin)/(Topo_RelMax-Topo_RelMin)))), Topo_Points) -> 0.8181818182 | H9: =IF((14-DPatrol_RelBest)>0, IF(14>=DPatrol_RelMax, 0, (DPatrol_Points*(1-((14-DPatrol_RelBest)/(DPatrol_RelMax-DPatrol_RelBest))))), (DPatrol_Points*((DPatrol_RelBest-(DPatrol_RelBest-14))/DPatrol_RelBest))) -> 5.6 | I9: =IF(1950<=Alt_RelMax, IF(1950<=Alt_RelMin, 0, (Alt_Points*((1950-Alt_RelMin)/(Alt_RelMax-Alt_RelMin)))), Alt_Points) -> 2.635135135 | J9: =IF(7<=SRP_RelMax, IF(7<=SRP_RelMin, 0, (SRP_Points*((7-SRP_RelMin)/(SRP_RelMax-SRP_RelMin)))), SRP_Points) -> 1.263157895 | K9: 0 | L9: =IF(17.5<=Rain_RelMax, IF(17.5<=Rain_RelMin, 0, (Rain_Points*((17.5-Rain_RelMin)/(Rain_RelMax-Rain_RelMin)))), Rain_Points) -> 1.985815603 | M9: =IF((38-DITS_RelBest)>0, IF(38>=DITS_RelMax, 0, (DITS_Points*(1-((38-DITS_RelBest)/(DITS_RelMax-DITS_RelBest))))), (DITS_Points*((DITS_RelBest-(DITS_RelBest-38))/DITS_RelBest))) -> 0 | N9: =IF(3<=Fire_RelMax, IF(3<=Fire_RelMin, 0, (Fire_Points*((3-Fire_RelMin)/(Fire_RelMax-Fire_RelMin)))), Fire_Points) -> 0.5 | O9: =IF(15>=DPower_RelMax, 1, 0) -> 1 | P9: =IF(15>=DComm_RelMax, 1, 0) -> 1 | S9: 0 | T9: =IF(1.12418041100176<=Rate_RelMax, IF(1.12418041100176<=Rate_RelMin, 0, (Rate_Points*((1.12418041100176-Rate_RelMin)/(Rate_RelMax-Rate_RelMin)))), Rate_Points) -> 0 | U9: =IF(16<=WCrashNum_RelMax, IF(16<=WCrashNum_RelMin, 0, (WCrashNum_Points*((16-WCrashNum_RelMin)/(WCrashNum_RelMax-WCrashNum_RelMin)))), WCrashNum_Points) -> 0 | V9: District 4 | AZ9: 46.35337302
A10: US-60 MM260 (West of Vaughn) | B10: 28.75533758 | C10: =IF(1.125<=Ratio_RelMax, IF(1.125<=Ratio_RelMin, 0, (Ratio_Points*((1.125-Ratio_RelMin)/(Ratio_RelMax-Ratio_RelMin)))), Ratio_Points) -> 13.39843193 | D10: =IF(21<=Snow_RelMax, IF(21<=Snow_RelMin, 0, (Snow_Points*((21-Snow_RelMin)/(Snow_RelMax-Snow_RelMin)))), Snow_Points) -> 2.2 | E10: =IF(2500<=AADT_RelMax, IF(2500<=AADT_RelMin, 0, (AADT_Points*((2500-AADT_RelMin)/(AADT_RelMax-AADT_RelMin)))), AADT_Points) -> 0.1502504174 | F10: 0 | G10: =IF(100<=Topo_RelMax, IF(100<=Topo_RelMin, 0, (Topo_Points*((100-Topo_RelMin)/(Topo_RelMax-Topo_RelMin)))), Topo_Points) -> 0.8181818182 | H10: =IF((8-DPatrol_RelBest)>0, IF(8>=DPatrol_RelMax, 0, (DPatrol_Points*(1-((8-DPatrol_RelBest)/(DPatrol_RelMax-DPatrol_RelBest))))), (DPatrol_Points*((DPatrol_RelBest-(DPatrol_RelBest-8))/DPatrol_RelBest))) -> 5.6 | I10: =IF(1880<=Alt_RelMax, IF(1880<=Alt_RelMin, 0, (Alt_Points*((1880-Alt_RelMin)/(Alt_RelMax-Alt_RelMin)))), Alt_Points) -> 2.351351351 | J10: =IF(10<=SRP_RelMax, IF(10<=SRP_RelMin, 0, (SRP_Points*((10-SRP_RelMin)/(SRP_RelMax-SRP_RelMin)))), SRP_Points) -> 2.210526316 | K10: 0 | L10: =IF(15<=Rain_RelMax, IF(15<=Rain_RelMin, 0, (Rain_Points*((15-Rain_RelMin)/(Rain_RelMax-Rain_RelMin)))), Rain_Points) -> 1.276595745 | M10: =IF((32-DITS_RelBest)>0, IF(32>=DITS_RelMax, 0, (DITS_Points*(1-((32-DITS_RelBest)/(DITS_RelMax-DITS_RelBest))))), (DITS_Points*((DITS_RelBest-(DITS_RelBest-32))/DITS_RelBest))) -> 0 | N10: =IF(4<=Fire_RelMax, IF(4<=Fire_RelMin, 0, (Fire_Points*((4-Fire_RelMin)/(Fire_RelMax-Fire_RelMin)))), Fire_Points) -> 0.75 | O10: =IF(7>=DPower_RelMax, 1, 0) -> 1 | P10: =IF(7>=DComm_RelMax, 1, 0) -> 1 | S10: 0 | T10: =IF(3.01731941343311<=Rate_RelMax, IF(3.01731941343311<=Rate_RelMin, 0, (Rate_Points*((3.01731941343311-Rate_RelMin)/(Rate_RelMax-Rate_RelMin)))), Rate_Points) -> 0 | U10: =IF(9<=WCrashNum_RelMax, IF(9<=WCrashNum_RelMin, 0, (WCrashNum_Points*((9-WCrashNum_RelMin)/(WCrashNum_RelMax-WCrashNum_RelMin)))), WCrashNum_Points) -> 0 | V10: District 5 | AZ10: 43.35952381
A11: I-40 MM70 (West of Grants) | B11: 22.93832465 | C11: =IF(0.684210526315789<=Ratio_RelMax, IF(0.684210526315789<=Ratio_RelMin, 0, (Ratio_Points*((0.684210526315789-Ratio_RelMin)/(Ratio_RelMax-Ratio_RelMin)))), Ratio_Points) -> 7.894061597 | D11: =IF(20.5<=Snow_RelMax, IF(20.5<=Snow_RelMin, 0, (Snow_Points*((20.5-Snow_RelMin)/(Snow_RelMax-Snow_RelMin)))), Snow_Points) -> 2.1 | E11: =IF(23100<=AADT_RelMax, IF(23100<=AADT_RelMin, 0, (AADT_Points*((23100-AADT_RelMin)/(AADT_RelMax-AADT_RelMin)))), AADT_Points) -> 1.869782972 | F11: 0 | G11: =IF(50<=Topo_RelMax, IF(50<=Topo_RelMin, 0, (Topo_Points*((50-Topo_RelMin)/(Topo_RelMax-Topo_RelMin)))), Topo_Points) -> 0.3068181818 | H11: =IF((7-DPatrol_RelBest)>0, IF(7>=DPatrol_RelMax, 0, (DPatrol_Points*(1-((7-DPatrol_RelBest)/(DPatrol_RelMax-DPatrol_RelBest))))), (DPatrol_Points*((DPatrol_RelBest-(DPatrol_RelBest-7))/DPatrol_RelBest))) -> 4.9 | I11: =IF(2060<=Alt_RelMax, IF(2060<=Alt_RelMin, 0, (Alt_Points*((2060-Alt_RelMin)/(Alt_RelMax-Alt_RelMin)))), Alt_Points) -> 3.081081081 | J11: =IF(9<=SRP_RelMax, IF(9<=SRP_RelMin, 0, (SRP_Points*((9-SRP_RelMin)/(SRP_RelMax-SRP_RelMin)))), SRP_Points) -> 1.894736842 | K11: 0 | L11: =IF(11<=Rain_RelMax, IF(11<=Rain_RelMin, 0, (Rain_Points*((11-Rain_RelMin)/(Rain_RelMax-Rain_RelMin)))), Rain_Points) -> 0.1418439716 | M11: =IF((50-DITS_RelBest)>0, IF(50>=DITS_RelMax, 0, (DITS_Points*(1-((50-DITS_RelBest)/(DITS_RelMax-DITS_RelBest))))), (DITS_Points*((DITS_RelBest-(DITS_RelBest-50))/DITS_RelBest))) -> 0 | N11: =IF(4<=Fire_RelMax, IF(4<=Fire_RelMin, 0, (Fire_Points*((4-Fire_RelMin)/(Fire_RelMax-Fire_RelMin)))), Fire_Points) -> 0.75 | O11: =IF(6>=DPower_RelMax, 1, 0) -> 1 | P11: =IF(6>=DComm_RelMax, 1, 0) -> 1 | S11: 0 | T11: =IF(0.320875144799383<=Rate_RelMax, IF(0.320875144799383<=Rate_RelMin, 0, (Rate_Points*((0.320875144799383-Rate_RelMin)/(Rate_RelMax-Rate_RelMin)))), Rate_Points) -> 0 | U11: =IF(52<=WCrashNum_RelMax, IF(52<=WCrashNum_RelMin, 0, (WCrashNum_Points*((52-WCrashNum_RelMin)/(WCrashNum_RelMax-WCrashNum_RelMin)))), WCrashNum_Points) -> 0 | V11: District 6 | AZ11: 43.21766998
A12: NM-550 MM110 | B12: 19.82942668 | C12: =IF(0.846153846153846<=Ratio_RelMax, IF(0.846153846153846<=Ratio_RelMin, 0, (Ratio_Points*((0.846153846153846-Ratio_RelMin)/(Ratio_RelMax-Ratio_RelMin)))), Ratio_Points) -> 9.916333132 | D12: =IF(26.4<=Snow_RelMax, IF(26.4<=Snow_RelMin, 0, (Snow_Points*((26.4-Snow_RelMin)/(Snow_RelMax-Snow_RelMin)))), Snow_Points) -> 3.28 | E12: =IF(5700<=AADT_RelMax, IF(5700<=AADT_RelMin, 0, (AADT_Points*((5700-AADT_RelMin)/(AADT_RelMax-AADT_RelMin)))), AADT_Points) -> 0.4173622705 | F12: 0 | G12: =IF(200<=Topo_RelMax, IF(200<=Topo_RelMin, 0, (Topo_Points*((200-Topo_RelMin)/(Topo_RelMax-Topo_RelMin)))), Topo_Points) -> 1.840909091 | H12: =IF((37-DPatrol_RelBest)>0, IF(37>=DPatrol_RelMax, 0, (DPatrol_Points*(1-((37-DPatrol_RelBest)/(DPatrol_RelMax-DPatrol_RelBest))))), (DPatrol_Points*((DPatrol_RelBest-(DPatrol_RelBest-37))/DPatrol_RelBest))) -> 0 | I12: =IF(2100<=Alt_RelMax, IF(2100<=Alt_RelMin, 0, (Alt_Points*((2100-Alt_RelMin)/(Alt_RelMax-Alt_RelMin)))), Alt_Points) -> 3.243243243 | J12: =IF(5<=SRP_RelMax, IF(5<=SRP_RelMin, 0, (SRP_Points*((5-SRP_RelMin)/(SRP_RelMax-SRP_RelMin)))), SRP_Points) -> 0.6315789474 | K12: 0 | L12: =IF(10.5<=Rain_RelMax, IF(10.5<=Rain_RelMin, 0, (Rain_Points*((10.5-Rain_RelMin)/(Rain_RelMax-Rain_RelMin)))), Rain_Points) -> 0 | M12: =IF((65-DITS_RelBest)>0, IF(65>=DITS_RelMax, 0, (DITS_Points*(1-((65-DITS_RelBest)/(DITS_RelMax-DITS_RelBest))))), (DITS_Points*((DITS_RelBest-(DITS_RelBest-65))/DITS_RelBest))) -> 0 | N12: =IF(3<=Fire_RelMax, IF(3<=Fire_RelMin, 0, (Fire_Points*((3-Fire_RelMin)/(Fire_RelMax-Fire_RelMin)))), Fire_Points) -> 0.5 | O12: =IF(40>=DPower_RelMax, 1, 0) -> 1 | P12: =IF(40>=DComm_RelMax, 1, 0) -> 1 | S12: 0 | T12: =IF(0.655873194049061<=Rate_RelMax, IF(0.655873194049061<=Rate_RelMin, 0, (Rate_Points*((0.655873194049061-Rate_RelMin)/(Rate_RelMax-Rate_RelMin)))), Rate_Points) -> 0 | U12: =IF(44<=WCrashNum_RelMax, IF(44<=WCrashNum_RelMin, 0, (WCrashNum_Points*((44-WCrashNum_RelMin)/(WCrashNum_RelMax-WCrashNum_RelMin)))), WCrashNum_Points) -> 0 | V12: District 5 | AZ12: 41.68630952
A13: I-25 MM268 (La Bajada) | B13: 22.33988711 | C13: =IF(0.252631578947368<=Ratio_RelMax, IF(0.252631578947368<=Ratio_RelMin, 0, (Ratio_Points*((0.252631578947368-Ratio_RelMin)/(Ratio_RelMax-Ratio_RelMin)))), Ratio_Points) -> 2.504707957 | D13: =IF(20.5<=Snow_RelMax, IF(20.5<=Snow_RelMin, 0, (Snow_Points*((20.5-Snow_RelMin)/(Snow_RelMax-Snow_RelMin)))), Snow_Points) -> 2.1 | E13: =IF(33800<=AADT_RelMax, IF(33800<=AADT_RelMin, 0, (AADT_Points*((33800-AADT_RelMin)/(AADT_RelMax-AADT_RelMin)))), AADT_Points) -> 2.76293823 | F13: 0 | G13: =IF(75<=Topo_RelMax, IF(75<=Topo_RelMin, 0, (Topo_Points*((75-Topo_RelMin)/(Topo_RelMax-Topo_RelMin)))), Topo_Points) -> 0.5625 | H13: =IF((9-DPatrol_RelBest)>0, IF(9>=DPatrol_RelMax, 0, (DPatrol_Points*(1-((9-DPatrol_RelBest)/(DPatrol_RelMax-DPatrol_RelBest))))), (DPatrol_Points*((DPatrol_RelBest-(DPatrol_RelBest-9))/DPatrol_RelBest))) -> 6.3 | I13: =IF(1850<=Alt_RelMax, IF(1850<=Alt_RelMin, 0, (Alt_Points*((1850-Alt_RelMin)/(Alt_RelMax-Alt_RelMin)))), Alt_Points) -> 2.22972973 | J13: =IF(8<=SRP_RelMax, IF(8<=SRP_RelMin, 0, (SRP_Points*((8-SRP_RelMin)/(SRP_RelMax-SRP_RelMin)))), SRP_Points) -> 1.578947368 | K13: 0 | L13: =IF(13.5<=Rain_RelMax, IF(13.5<=Rain_RelMin, 0, (Rain_Points*((13.5-Rain_RelMin)/(Rain_RelMax-Rain_RelMin)))), Rain_Points) -> 0.8510638298 | M13: =IF((3-DITS_RelBest)>0, IF(3>=DITS_RelMax, 0, (DITS_Points*(1-((3-DITS_RelBest)/(DITS_RelMax-DITS_RelBest))))), (DITS_Points*((DITS_RelBest-(DITS_RelBest-3))/DITS_RelBest))) -> 2.7 | N13: =IF(4<=Fire_RelMax, IF(4<=Fire_RelMin, 0, (Fire_Points*((4-Fire_RelMin)/(Fire_RelMax-Fire_RelMin)))), Fire_Points) -> 0.75 | O13: =IF(7>=DPower_RelMax, 1, 0) -> 1 | P13: =IF(7>=DComm_RelMax, 1, 0) -> 1 | S13: 0 | T13: =IF(0.172369979923638<=Rate_RelMax, IF(0.172369979923638<=Rate_RelMin, 0, (Rate_Points*((0.172369979923638-Rate_RelMin)/(Rate_RelMax-Rate_RelMin)))), Rate_Points) -> 0 | U13: =IF(24<=WCrashNum_RelMax, IF(24<=WCrashNum_RelMin, 0, (WCrashNum_Points*((24-WCrashNum_RelMin)/(WCrashNum_RelMax-WCrashNum_RelMin)))), WCrashNum_Points) -> 0 | V13: District 5 | AZ13: 41.16065645
A14: NM-68 MM16 (Velarde) | B14: 19.03680958 | C14: =IF(0.280701754385965<=Ratio_RelMax, IF(0.280701754385965<=Ratio_RelMin, 0, (Ratio_Points*((0.280701754385965-Ratio_RelMin)/(Ratio_RelMax-Ratio_RelMin)))), Ratio_Points) -> 2.855235023 | D14: =IF(31.1<=Snow_RelMax, IF(31.1<=Snow_RelMin, 0, (Snow_Points*((31.1-Snow_RelMin)/(Snow_RelMax-Snow_RelMin)))), Snow_Points) -> 4.22 | E14: =IF(5700<=AADT_RelMax, IF(5700<=AADT_RelMin, 0, (AADT_Points*((5700-AADT_RelMin)/(AADT_RelMax-AADT_RelMin)))), AADT_Points) -> 0.4173622705 | F14: 0 | G14: =IF(360<=Topo_RelMax, IF(360<=Topo_RelMin, 0, (Topo_Points*((360-Topo_RelMin)/(Topo_RelMax-Topo_RelMin)))), Topo_Points) -> 3.477272727 | H14: =IF((7.5-DPatrol_RelBest)>0, IF(7.5>=DPatrol_RelMax, 0, (DPatrol_Points*(1-((7.5-DPatrol_RelBest)/(DPatrol_RelMax-DPatrol_RelBest))))), (DPatrol_Points*((DPatrol_RelBest-(DPatrol_RelBest-7.5))/DPatrol_RelBest))) -> 5.25 | I14: =IF(1770<=Alt_RelMax, IF(1770<=Alt_RelMin, 0, (Alt_Points*((1770-Alt_RelMin)/(Alt_RelMax-Alt_RelMin)))), Alt_Points) -> 1.905405405 | J14: =IF(4<=SRP_RelMax, IF(4<=SRP_RelMin, 0, (SRP_Points*((4-SRP_RelMin)/(SRP_RelMax-SRP_RelMin)))), SRP_Points) -> 0.3157894737 | K14: 0 | L14: =IF(12.6<=Rain_RelMax, IF(12.6<=Rain_RelMin, 0, (Rain_Points*((12.6-Rain_RelMin)/(Rain_RelMax-Rain_RelMin)))), Rain_Points) -> 0.5957446809 | M14: =IF((12-DITS_RelBest)>0, IF(12>=DITS_RelMax, 0, (DITS_Points*(1-((12-DITS_RelBest)/(DITS_RelMax-DITS_RelBest))))), (DITS_Points*((DITS_RelBest-(DITS_RelBest-12))/DITS_RelBest))) -> 0 | N14: =IF(1<=Fire_RelMax, IF(1<=Fire_RelMin, 0, (Fire_Points*((1-Fire_RelMin)/(Fire_RelMax-Fire_RelMin)))), Fire_Points) -> 0 | O14: =IF(0>=DPower_RelMax, 1, 0) -> 0 | P14: =IF(0>=DComm_RelMax, 1, 0) -> 0 | S14: 0 | T14: =IF(0.506457709306215<=Rate_RelMax, IF(0.506457709306215<=Rate_RelMin, 0, (Rate_Points*((0.506457709306215-Rate_RelMin)/(Rate_RelMax-Rate_RelMin)))), Rate_Points) -> 0 | U14: =IF(16<=WCrashNum_RelMax, IF(16<=WCrashNum_RelMin, 0, (WCrashNum_Points*((16-WCrashNum_RelMin)/(WCrashNum_RelMax-WCrashNum_RelMin)))), WCrashNum_Points) -> 0 | V14: District 5 | AZ14: 36.93554318
A15: I-25 MM257 (San Felipe Pueblo) | B15: 14.54253415 | C15: =IF(0.273809523809524<=Ratio_RelMax, IF(0.273809523809524<=Ratio_RelMin, 0, (Ratio_Points*((0.273809523809524-Ratio_RelMin)/(Ratio_RelMax-Ratio_RelMin)))), Ratio_Points) -> 2.769168109 | D15: =IF(20.5<=Snow_RelMax, IF(20.5<=Snow_RelMin, 0, (Snow_Points*((20.5-Snow_RelMin)/(Snow_RelMax-Snow_RelMin)))), Snow_Points) -> 2.1 | E15: =IF(25000<=AADT_RelMax, IF(25000<=AADT_RelMin, 0, (AADT_Points*((25000-AADT_RelMin)/(AADT_RelMax-AADT_RelMin)))), AADT_Points) -> 2.028380634 | F15: 0 | G15: =IF(50<=Topo_RelMax, IF(50<=Topo_RelMin, 0, (Topo_Points*((50-Topo_RelMin)/(Topo_RelMax-Topo_RelMin)))), Topo_Points) -> 0.3068181818 | H15: =IF((22-DPatrol_RelBest)>0, IF(22>=DPatrol_RelMax, 0, (DPatrol_Points*(1-((22-DPatrol_RelBest)/(DPatrol_RelMax-DPatrol_RelBest))))), (DPatrol_Points*((DPatrol_RelBest-(DPatrol_RelBest-22))/DPatrol_RelBest))) -> 2.8 | I15: =IF(1670<=Alt_RelMax, IF(1670<=Alt_RelMin, 0, (Alt_Points*((1670-Alt_RelMin)/(Alt_RelMax-Alt_RelMin)))), Alt_Points) -> 1.5 | J15: =IF(8<=SRP_RelMax, IF(8<=SRP_RelMin, 0, (SRP_Points*((8-SRP_RelMin)/(SRP_RelMax-SRP_RelMin)))), SRP_Points) -> 1.578947368 | K15: 0 | L15: =IF(13<=Rain_RelMax, IF(13<=Rain_RelMin, 0, (Rain_Points*((13-Rain_RelMin)/(Rain_RelMax-Rain_RelMin)))), Rain_Points) -> 0.7092198582 | M15: =IF((14-DITS_RelBest)>0, IF(14>=DITS_RelMax, 0, (DITS_Points*(1-((14-DITS_RelBest)/(DITS_RelMax-DITS_RelBest))))), (DITS_Points*((DITS_RelBest-(DITS_RelBest-14))/DITS_RelBest))) -> 0 | N15: =IF(4<=Fire_RelMax, IF(4<=Fire_RelMin, 0, (Fire_Points*((4-Fire_RelMin)/(Fire_RelMax-Fire_RelMin)))), Fire_Points) -> 0.75 | O15: =IF(0>=DPower_RelMax, 1, 0) -> 0 | P15: =IF(0>=DComm_RelMax, 1, 0) -> 0 | S15: =IF(1 = 1, 1, 0) -> 1 | T15: =IF(0.22426399968018<=Rate_RelMax, IF(0.22426399968018<=Rate_RelMin, 0, (Rate_Points*((0.22426399968018-Rate_RelMin)/(Rate_RelMax-Rate_RelMin)))), Rate_Points) -> 0 | U15: =IF(23<=WCrashNum_RelMax, IF(23<=WCrashNum_RelMin, 0, (WCrashNum_Points*((23-WCrashNum_RelMin)/(WCrashNum_RelMax-WCrashNum_RelMin)))), WCrashNum_Points) -> 0 | V15: District 3 | AZ15: 29.80973748
A16: NM-550 MM27 (San Ysidro) | B16: 14.94906274 | C16: =IF(0.513513513513513<=Ratio_RelMax, IF(0.513513513513513<=Ratio_RelMin, 0, (Ratio_Points*((0.513513513513513-Ratio_RelMin)/(Ratio_RelMax-Ratio_RelMin)))), Ratio_Points) -> 5.762478087 | D16: =IF(20.2<=Snow_RelMax, IF(20.2<=Snow_RelMin, 0, (Snow_Points*((20.2-Snow_RelMin)/(Snow_RelMax-Snow_RelMin)))), Snow_Points) -> 2.04 | E16: =IF(5100<=AADT_RelMax, IF(5100<=AADT_RelMin, 0, (AADT_Points*((5100-AADT_RelMin)/(AADT_RelMax-AADT_RelMin)))), AADT_Points) -> 0.367278798 | F16: 0 | G16: =IF(150<=Topo_RelMax, IF(150<=Topo_RelMin, 0, (Topo_Points*((150-Topo_RelMin)/(Topo_RelMax-Topo_RelMin)))), Topo_Points) -> 1.329545455 | H16: =IF((3.5-DPatrol_RelBest)>0, IF(3.5>=DPatrol_RelMax, 0, (DPatrol_Points*(1-((3.5-DPatrol_RelBest)/(DPatrol_RelMax-DPatrol_RelBest))))), (DPatrol_Points*((DPatrol_RelBest-(DPatrol_RelBest-3.5))/DPatrol_RelBest))) -> 2.45 | I16: =IF(1680<=Alt_RelMax, IF(1680<=Alt_RelMin, 0, (Alt_Points*((1680-Alt_RelMin)/(Alt_RelMax-Alt_RelMin)))), Alt_Points) -> 1.540540541 | J16: =IF(3<=SRP_RelMax, IF(3<=SRP_RelMin, 0, (SRP_Points*((3-SRP_RelMin)/(SRP_RelMax-SRP_RelMin)))), SRP_Points) -> 0 | K16: 0 | L16: =IF(13<=Rain_RelMax, IF(13<=Rain_RelMin, 0, (Rain_Points*((13-Rain_RelMin)/(Rain_RelMax-Rain_RelMin)))), Rain_Points) -> 0.7092198582 | M16: =IF((100-DITS_RelBest)>0, IF(100>=DITS_RelMax, 0, (DITS_Points*(1-((100-DITS_RelBest)/(DITS_RelMax-DITS_RelBest))))), (DITS_Points*((DITS_RelBest-(DITS_RelBest-100))/DITS_RelBest))) -> 0 | N16: =IF(4<=Fire_RelMax, IF(4<=Fire_RelMin, 0, (Fire_Points*((4-Fire_RelMin)/(Fire_RelMax-Fire_RelMin)))), Fire_Points) -> 0.75 | O16: =IF(3.5>=DPower_RelMax, 1, 0) -> 1 | P16: =IF(3.5>=DComm_RelMax, 1, 0) -> 1 | S16: =IF(0 = 1, 1, 0) -> 0 | T16: =IF(0.354348190560829<=Rate_RelMax, IF(0.354348190560829<=Rate_RelMin, 0, (Rate_Points*((0.354348190560829-Rate_RelMin)/(Rate_RelMax-Rate_RelMin)))), Rate_Points) -> 0 | U16: =IF(19<=WCrashNum_RelMax, IF(19<=WCrashNum_RelMin, 0, (WCrashNum_Points*((19-WCrashNum_RelMin)/(WCrashNum_RelMax-WCrashNum_RelMin)))), WCrashNum_Points) -> 0 | V16: District 6 | AZ16: 29.29407196
A17: US-70 MM255 (South of Ruidoso) | B17: 14.59355744 | C17: =IF(0.102222222222222<=Ratio_RelMax, IF(0.102222222222222<=Ratio_RelMin, 0, (Ratio_Points*((0.102222222222222-Ratio_RelMin)/(Ratio_RelMax-Ratio_RelMin)))), Ratio_Points) -> 0.6264670943 | D17: =IF(23<=Snow_RelMax, IF(23<=Snow_RelMin, 0, (Snow_Points*((23-Snow_RelMin)/(Snow_RelMax-Snow_RelMin)))), Snow_Points) -> 2.6 | E17: =IF(7300<=AADT_RelMax, IF(7300<=AADT_RelMin, 0, (AADT_Points*((7300-AADT_RelMin)/(AADT_RelMax-AADT_RelMin)))), AADT_Points) -> 0.550918197 | F17: 0 | G17: =IF(200<=Topo_RelMax, IF(200<=Topo_RelMin, 0, (Topo_Points*((200-Topo_RelMin)/(Topo_RelMax-Topo_RelMin)))), Topo_Points) -> 1.840909091 | H17: =IF((25-DPatrol_RelBest)>0, IF(25>=DPatrol_RelMax, 0, (DPatrol_Points*(1-((25-DPatrol_RelBest)/(DPatrol_RelMax-DPatrol_RelBest))))), (DPatrol_Points*((DPatrol_RelBest-(DPatrol_RelBest-25))/DPatrol_RelBest))) -> 1.75 | I17: =IF(2200<=Alt_RelMax, IF(2200<=Alt_RelMin, 0, (Alt_Points*((2200-Alt_RelMin)/(Alt_RelMax-Alt_RelMin)))), Alt_Points) -> 3.648648649 | J17: =IF(5<=SRP_RelMax, IF(5<=SRP_RelMin, 0, (SRP_Points*((5-SRP_RelMin)/(SRP_RelMax-SRP_RelMin)))), SRP_Points) -> 0.6315789474 | K17: 0 | L17: =IF(20<=Rain_RelMax, IF(20<=Rain_RelMin, 0, (Rain_Points*((20-Rain_RelMin)/(Rain_RelMax-Rain_RelMin)))), Rain_Points) -> 2.695035461 | M17: =IF((90-DITS_RelBest)>0, IF(90>=DITS_RelMax, 0, (DITS_Points*(1-((90-DITS_RelBest)/(DITS_RelMax-DITS_RelBest))))), (DITS_Points*((DITS_RelBest-(DITS_RelBest-90))/DITS_RelBest))) -> 0 | N17: =IF(2<=Fire_RelMax, IF(2<=Fire_RelMin, 0, (Fire_Points*((2-Fire_RelMin)/(Fire_RelMax-Fire_RelMin)))), Fire_Points) -> 0.25 | O17: =IF(7>=DPower_RelMax, 1, 0) -> 1 | P17: =IF(7>=DComm_RelMax, 1, 0) -> 1 | S17: =IF(1 = 1, 1, 0) -> 1 | T17: =IF(0.109863987666764<=Rate_RelMax, IF(0.109863987666764<=Rate_RelMin, 0, (Rate_Points*((0.109863987666764-Rate_RelMin)/(Rate_RelMax-Rate_RelMin)))), Rate_Points) -> 0 | U17: =IF(23<=WCrashNum_RelMax, IF(23<=WCrashNum_RelMin, 0, (WCrashNum_Points*((23-WCrashNum_RelMin)/(WCrashNum_RelMax-WCrashNum_RelMin)))), WCrashNum_Points) -> 0 | V17: District 2 | AZ17: 29.17434371
A18: I-25/I-40 (The Big I) | B18: 26.62083868 | C18: =IF(0.0532896085263374<=Ratio_RelMax, IF(0.0532896085263374<=Ratio_RelMin, 0, (Ratio_Points*((0.0532896085263374-Ratio_RelMin)/(Ratio_RelMax-Ratio_RelMin)))), Ratio_Points) -> 0.0154197729 | D18: =IF(12.5<=Snow_RelMax, IF(12.5<=Snow_RelMin, 0, (Snow_Points*((12.5-Snow_RelMin)/(Snow_RelMax-Snow_RelMin)))), Snow_Points) -> 0.5 | E18: =IF(180400<=AADT_RelMax, IF(180400<=AADT_RelMin, 0, (AADT_Points*((180400-AADT_RelMin)/(AADT_RelMax-AADT_RelMin)))), AADT_Points) -> 15 | F18: 0 | G18: =IF(50<=Topo_RelMax, IF(50<=Topo_RelMin, 0, (Topo_Points*((50-Topo_RelMin)/(Topo_RelMax-Topo_RelMin)))), Topo_Points) -> 0.3068181818 | H18: =IF((3-DPatrol_RelBest)>0, IF(3>=DPatrol_RelMax, 0, (DPatrol_Points*(1-((3-DPatrol_RelBest)/(DPatrol_RelMax-DPatrol_RelBest))))), (DPatrol_Points*((DPatrol_RelBest-(DPatrol_RelBest-3))/DPatrol_RelBest))) -> 2.1 | I18: =IF(1536<=Alt_RelMax, IF(1536<=Alt_RelMin, 0, (Alt_Points*((1536-Alt_RelMin)/(Alt_RelMax-Alt_RelMin)))), Alt_Points) -> 0.9567567568 | J18: =IF(22<=SRP_RelMax, IF(22<=SRP_RelMin, 0, (SRP_Points*((22-SRP_RelMin)/(SRP_RelMax-SRP_RelMin)))), SRP_Points) -> 6 | K18: 0 | L18: =IF(11<=Rain_RelMax, IF(11<=Rain_RelMin, 0, (Rain_Points*((11-Rain_RelMin)/(Rain_RelMax-Rain_RelMin)))), Rain_Points) -> 0.1418439716 | M18: =IF((0.5-DITS_RelBest)>0, IF(0.5>=DITS_RelMax, 0, (DITS_Points*(1-((0.5-DITS_RelBest)/(DITS_RelMax-DITS_RelBest))))), (DITS_Points*((DITS_RelBest-(DITS_RelBest-0.5))/DITS_RelBest))) -> 0.6 | N18: =IF(5<=Fire_RelMax, IF(5<=Fire_RelMin, 0, (Fire_Points*((5-Fire_RelMin)/(Fire_RelMax-Fire_RelMin)))), Fire_Points) -> 1 | O18: =IF(0>=DPower_RelMax, 1, 0) -> 0 | P18: =IF(0>=DComm_RelMax, 1, 0) -> 0 | S18: =IF(0 = 1, 1, 0) -> 0 | T18: =IF(0.0187339512335522<=Rate_RelMax, IF(0.0187339512335522<=Rate_RelMin, 0, (Rate_Points*((0.0187339512335522-Rate_RelMin)/(Rate_RelMax-Rate_RelMin)))), Rate_Points) -> 0 | U18: =IF(260<=WCrashNum_RelMax, IF(260<=WCrashNum_RelMin, 0, (WCrashNum_Points*((260-WCrashNum_RelMin)/(WCrashNum_RelMax-WCrashNum_RelMin)))), WCrashNum_Points) -> 0 | V18: District 3 | AZ18: 28.14388889
A19: NM-602 MM25 (South of Gallup) | B19: 14.2981709 | C19: =IF(0.173267326732673<=Ratio_RelMax, IF(0.173267326732673<=Ratio_RelMin, 0, (Ratio_Points*((0.173267326732673-Ratio_RelMin)/(Ratio_RelMax-Ratio_RelMin)))), Ratio_Points) -> 1.513644736 | D19: =IF(26.5<=Snow_RelMax, IF(26.5<=Snow_RelMin, 0, (Snow_Points*((26.5-Snow_RelMin)/(Snow_RelMax-Snow_RelMin)))), Snow_Points) -> 3.3 | E19: =IF(8200<=AADT_RelMax, IF(8200<=AADT_RelMin, 0, (AADT_Points*((8200-AADT_RelMin)/(AADT_RelMax-AADT_RelMin)))), AADT_Points) -> 0.6260434057 | F19: 0 | G19: =IF(100<=Topo_RelMax, IF(100<=Topo_RelMin, 0, (Topo_Points*((100-Topo_RelMin)/(Topo_RelMax-Topo_RelMin)))), Topo_Points) -> 0.8181818182 | H19: =IF((5-DPatrol_RelBest)>0, IF(5>=DPatrol_RelMax, 0, (DPatrol_Points*(1-((5-DPatrol_RelBest)/(DPatrol_RelMax-DPatrol_RelBest))))), (DPatrol_Points*((DPatrol_RelBest-(DPatrol_RelBest-5))/DPatrol_RelBest))) -> 3.5 | I19: =IF(2060<=Alt_RelMax, IF(2060<=Alt_RelMin, 0, (Alt_Points*((2060-Alt_RelMin)/(Alt_RelMax-Alt_RelMin)))), Alt_Points) -> 3.081081081 | J19: =IF(3<=SRP_RelMax, IF(3<=SRP_RelMin, 0, (SRP_Points*((3-SRP_RelMin)/(SRP_RelMax-SRP_RelMin)))), SRP_Points) -> 0 | K19: 0 | L19: =IF(13<=Rain_RelMax, IF(13<=Rain_RelMin, 0, (Rain_Points*((13-Rain_RelMin)/(Rain_RelMax-Rain_RelMin)))), Rain_Points) -> 0.7092198582 | M19: =IF((29-DITS_RelBest)>0, IF(29>=DITS_RelMax, 0, (DITS_Points*(1-((29-DITS_RelBest)/(DITS_RelMax-DITS_RelBest))))), (DITS_Points*((DITS_RelBest-(DITS_RelBest-29))/DITS_RelBest))) -> 0 | N19: =IF(4<=Fire_RelMax, IF(4<=Fire_RelMin, 0, (Fire_Points*((4-Fire_RelMin)/(Fire_RelMax-Fire_RelMin)))), Fire_Points) -> 0.75 | O19: =IF(4>=DPower_RelMax, 1, 0) -> 1 | P19: =IF(4>=DComm_RelMax, 1, 0) -> 1 | S19: =IF(1 = 1, 1, 0) -> 1 | T19: =IF(0.080571822181552<=Rate_RelMax, IF(0.080571822181552<=Rate_RelMin, 0, (Rate_Points*((0.080571822181552-Rate_RelMin)/(Rate_RelMax-Rate_RelMin)))), Rate_Points) -> 0 | U19: =IF(35<=WCrashNum_RelMax, IF(35<=WCrashNum_RelMin, 0, (WCrashNum_Points*((35-WCrashNum_RelMin)/(WCrashNum_RelMax-WCrashNum_RelMin)))), WCrashNum_Points) -> 0 | V19: District 6 | AZ19: 27.25628121
A20: I-40 MM320 (West of Tucumcari) | B20: 15.04537562 | C20: =IF(0.266666666666667<=Ratio_RelMax, IF(0.266666666666667<=Ratio_RelMin, 0, (Ratio_Points*((0.266666666666667-Ratio_RelMin)/(Ratio_RelMax-Ratio_RelMin)))), Ratio_Points) -> 2.67997149 | D20: =IF(15.4<=Snow_RelMax, IF(15.4<=Snow_RelMin, 0, (Snow_Points*((15.4-Snow_RelMin)/(Snow_RelMax-Snow_RelMin)))), Snow_Points) -> 1.08 | E20: =IF(21000<=AADT_RelMax, IF(21000<=AADT_RelMin, 0, (AADT_Points*((21000-AADT_RelMin)/(AADT_RelMax-AADT_RelMin)))), AADT_Points) -> 1.694490818 | F20: 0 | G20: =IF(20<=Topo_RelMax, IF(20<=Topo_RelMin, 0, (Topo_Points*((20-Topo_RelMin)/(Topo_RelMax-Topo_RelMin)))), Topo_Points) -> 0 | H20: =IF((13-DPatrol_RelBest)>0, IF(13>=DPatrol_RelMax, 0, (DPatrol_Points*(1-((13-DPatrol_RelBest)/(DPatrol_RelMax-DPatrol_RelBest))))), (DPatrol_Points*((DPatrol_RelBest-(DPatrol_RelBest-13))/DPatrol_RelBest))) -> 5.95 | I20: =IF(1370<=Alt_RelMax, IF(1370<=Alt_RelMin, 0, (Alt_Points*((1370-Alt_RelMin)/(Alt_RelMax-Alt_RelMin)))), Alt_Points) -> 0.2837837838 | J20: =IF(7<=SRP_RelMax, IF(7<=SRP_RelMin, 0, (SRP_Points*((7-SRP_RelMin)/(SRP_RelMax-SRP_RelMin)))), SRP_Points) -> 1.263157895 | K20: 0 | L20: =IF(17<=Rain_RelMax, IF(17<=Rain_RelMin, 0, (Rain_Points*((17-Rain_RelMin)/(Rain_RelMax-Rain_RelMin)))), Rain_Points) -> 1.843971631 | M20: =IF((130-DITS_RelBest)>0, IF(130>=DITS_RelMax, 0, (DITS_Points*(1-((130-DITS_RelBest)/(DITS_RelMax-DITS_RelBest))))), (DITS_Points*((DITS_RelBest-(DITS_RelBest-130))/DITS_RelBest))) -> 0 | N20: =IF(2<=Fire_RelMax, IF(2<=Fire_RelMin, 0, (Fire_Points*((2-Fire_RelMin)/(Fire_RelMax-Fire_RelMin)))), Fire_Points) -> 0.25 | O20: =IF(10>=DPower_RelMax, 1, 0) -> 1 | P20: =IF(10>=DComm_RelMax, 1, 0) -> 1 | S20: =IF(0 = 1, 1, 0) -> 0 | T20: =IF(0.113028498299133<=Rate_RelMax, IF(0.113028498299133<=Rate_RelMin, 0, (Rate_Points*((0.113028498299133-Rate_RelMin)/(Rate_RelMax-Rate_RelMin)))), Rate_Points) -> 0 | U20: =IF(8<=WCrashNum_RelMax, IF(8<=WCrashNum_RelMin, 0, (WCrashNum_Points*((8-WCrashNum_RelMin)/(WCrashNum_RelMax-WCrashNum_RelMin)))), WCrashNum_Points) -> 0 | V20: District 4 | AZ20: 25.12954823
A21: US-70 MM435 (South of Clovis) | B21: 10.03683298 | C21: =IF(0.0520547945205479<=Ratio_RelMax, IF(0.0520547945205479<=Ratio_RelMin, 0, (Ratio_Points*((0.0520547945205479-Ratio_RelMin)/(Ratio_RelMax-Ratio_RelMin)))), Ratio_Points) -> 0 | D21: =IF(10<=Snow_RelMax, IF(10<=Snow_RelMin, 0, (Snow_Points*((10-Snow_RelMin)/(Snow_RelMax-Snow_RelMin)))), Snow_Points) -> 0 | E21: =IF(16800<=AADT_RelMax, IF(16800<=AADT_RelMin, 0, (AADT_Points*((16800-AADT_RelMin)/(AADT_RelMax-AADT_RelMin)))), AADT_Points) -> 1.343906511 | F21: 0 | G21: =IF(20<=Topo_RelMax, IF(20<=Topo_RelMin, 0, (Topo_Points*((20-Topo_RelMin)/(Topo_RelMax-Topo_RelMin)))), Topo_Points) -> 0 | H21: =IF((4-DPatrol_RelBest)>0, IF(4>=DPatrol_RelMax, 0, (DPatrol_Points*(1-((4-DPatrol_RelBest)/(DPatrol_RelMax-DPatrol_RelBest))))), (DPatrol_Points*((DPatrol_RelBest-(DPatrol_RelBest-4))/DPatrol_RelBest))) -> 2.8 | I21: =IF(1300<=Alt_RelMax, IF(1300<=Alt_RelMin, 0, (Alt_Points*((1300-Alt_RelMin)/(Alt_RelMax-Alt_RelMin)))), Alt_Points) -> 0 | J21: =IF(5<=SRP_RelMax, IF(5<=SRP_RelMin, 0, (SRP_Points*((5-SRP_RelMin)/(SRP_RelMax-SRP_RelMin)))), SRP_Points) -> 0.6315789474 | K21: 0 | L21: =IF(19<=Rain_RelMax, IF(19<=Rain_RelMin, 0, (Rain_Points*((19-Rain_RelMin)/(Rain_RelMax-Rain_RelMin)))), Rain_Points) -> 2.411347518 | M21: =IF((4-DITS_RelBest)>0, IF(4>=DITS_RelMax, 0, (DITS_Points*(1-((4-DITS_RelBest)/(DITS_RelMax-DITS_RelBest))))), (DITS_Points*((DITS_RelBest-(DITS_RelBest-4))/DITS_RelBest))) -> 2.1 | N21: =IF(4<=Fire_RelMax, IF(4<=Fire_RelMin, 0, (Fire_Points*((4-Fire_RelMin)/(Fire_RelMax-Fire_RelMin)))), Fire_Points) -> 0.75 | O21: =IF(1>=DPower_RelMax, 1, 0) -> 0 | P21: =IF(1>=DComm_RelMax, 1, 0) -> 0 | S21: =IF(0 = 1, 1, 0) -> 0 | T21: =IF(0.0246487810752243<=Rate_RelMax, IF(0.0246487810752243<=Rate_RelMin, 0, (Rate_Points*((0.0246487810752243-Rate_RelMin)/(Rate_RelMax-Rate_RelMin)))), Rate_Points) -> 0 | U21: =IF(19<=WCrashNum_RelMax, IF(19<=WCrashNum_RelMin, 0, (WCrashNum_Points*((19-WCrashNum_RelMin)/(WCrashNum_RelMax-WCrashNum_RelMin)))), WCrashNum_Points) -> 0 | V21: District 2 | AZ21: 14.98214286

Sheet Criteria & Importance
A1: Criteria | B1: Ratio of Weather to Clear Crashes | C1: Average annual snow (in) | D1: 2013 AADT | E1: Average Wind Gust | F1: Local Altitude Range (meters) | G1: Dist Patrol Yard (mi) | H1: Altitude (Meters) | I1: Snow Removal Priority | J1: Average Road Grade 2 Miles | K1: Average Annual Rain (in) | L1: Dist ITS Unit (mi) | M1: Fire Risk (0 Very High, 5 No Risk) | N1: Distance to Power (mi) | O1: Distance to Communication (mi) | P1: Local Environment | Q1: Functional Class | R1: In Tribal Land? | S1: Ratio of Crash Rates Per 100M Vehicle Miles | T1: Number of Weather Related Crashes | U1: Comment 1 | V1: Comment 2
A2: Sponsor's Importance Factor (1 to 13) | B2: 1 | C2: 2 | D2: 4 | E2: 2 | F2: 10 | G2: 9 | H2: 6 | I2: 4 | J2: 8 | K2: 11 | L2: 12 | M2: 13 | N2: - | O2: - | P2: 6 | Q2: - | R2: - | S2: - | T2: -
A3: Final Score (%) | B3: 16 | C3: 15 | D3: 15 | E3: 12 | F3: 9 | G3: 7 | H3: 6 | I3: 6 | J3: 6 | K3: 4 | L3: 3 | M3: 1 | N3: BOOLEAN | O3: BOOLEAN | P3: FLAG | Q3: - | R3: BOOLEAN | S3: 0 | T3: 0
A4: Deal Killer | N4: TRUE | O4: TRUE | R4: TRUE
A5: Have Data | E5: FALSE | J5: FALSE | N5: FALSE | O5: FALSE | P5: FALSE | S5: TRUE | T5: TRUE
A6: Max Threshold | B6: 0.75 | C6: 32 | D6: 45000 | F6: 200 | G6: 10 | H6: 2600 | I6: 11 | K6: 18 | L6: 2.5 | M6: 5 | N6: 1.5 | O6: 1.5 | S6: 1 | T6: 40
A7: Min Threshold | B7: 0.1 | C7: 12 | D7: 5000 | F7: 20 | G7: 30 | H7: 1400 | I7: 4 | K7: 9 | L7: 7.5 | M7: 0 | S7: 0.09 | T7: 15
A9: Max Relative | B9: =MAX('Data Input'!D:D) -> 1.333333333 | C9: =MAX('Data Input'!E:E) -> 85 | D9: =MAX('Data Input'!F:F) -> 180400 | E9: =MAX('Data Input'!G:G) -> 0 | F9: =MAX('Data Input'!H:H) -> 900 | G9: 10 | H9: =MAX('Data Input'!J:J) -> 2780 | I9: =MAX('Data Input'!K:K) -> 22 | J9: =MAX('Data Input'!L:L) -> 0 | K9: =MAX('Data Input'!M:M) -> 24.6 | L9: 2.5 | M9: =MAX('Data Input'!O:O) -> 5 | N9: 1.5 | O9: 1.5 | S9: =MAX('Data Input'!Y2:Y65536) -> 20.05362339 | T9: =MAX('Data Input'!B2:B65536) -> 260
A10: Min Relative | B10: =MIN('Data Input'!D:D) -> 0.05205479452 | C10: =MIN('Data Input'!E:E) -> 10 | D10: =MIN('Data Input'!F:F) -> 700 | E10: =MIN('Data Input'!G:G) -> 0 | F10: =MIN('Data Input'!H:H) -> 20 | G10: 30 | H10: =MIN('Data Input'!J:J) -> 1300 | I10: =MIN('Data Input'!K:K) -> 3 | J10: =MIN('Data Input'!L:L) -> 0 | K10: =MIN('Data Input'!M:M) -> 10.5 | L10: 7.5 | M10: =MIN('Data Input'!O:O) -> 1 | S10: =MIN('Data Input'!Y2:Y65536) -> 0.01873395123 | T10: =MIN('Data Input'!B2:B65536) -> 8
